Workbook

Sheet Result_Summary
A1: Lipidomic analysis: Isolated adipocytes from ACSL4 floxed & Ad-KO males on HFD for 12 weeks
A3: Samples: | B3: 1 | C3: ACSL4floxed HFD
B4: 2 | C4: ACSL4floxed HFD
B5: 3 | C5: ACSL4floxed HFD
B6: 4 | C6: ACSL4floxed HFD
B7: 5 | C7: ACSL4floxed HFD
B8: 6 | C8: ACSL4floxed HFD
B9: 7 | C9: ACSL4floxed HFD
B10: 8 | C10: ACSL4floxed HFD
B11: 9 | C11: ACSL4floxed HFD
B12: 10 | C12: Ad-KO HFD
B13: 11 | C13: Ad-KO HFD
B14: 12 | C14: Ad-KO HFD
B15: 13 | C15: Ad-KO HFD
B16: 14 | C16: Ad-KO HFD
B17: 15 | C17: Ad-KO HFD
M18: ACSL4floxed HFD | V18: Ad-KO HFD
A19: Phosphatidylethanolamine (PE) (nmol/mg protein) | B19: MASS:PE-FMOC | D19: 1 | E19: 2 | F19: 3 | G19: 4 | H19: 5 | I19: 6 | J19: 7 | K19: 8 | L19: 9 | M19: Average | N19: SE | P19: 10 | Q19: 11 | R19: 12 | S19: 13 | T19: 14 | U19: 15 | V19: Average | W19: SE
A20: P16:0-16:1 | B20: 894.4968151 | D20: 0.1333778763 | E20: 0.2226865415 | F20: 0.1613992242 | G20: 0.3869552894 | H20: 0.338023504 | I20: 0.1766046135 | J20: 0.2161706248 | K20: 0.3688753179 | L20: 0.2195875715 | M20: =AVERAGE(D20:L20) -> 0.2470756181 | N20: =STDEV(D20:L20)/SQRT(9) -> 0.03122773187 | P20: 0.318851835 | Q20: 0.4130562515 | R20: 0.3987987196 | S20: 0.1247672391 | T20: 0.1719068298 | U20: 0.2688228333 | V20: =AVERAGE(P20:U20) -> 0.282700618 | W20: =STDEV(P20:U20)/SQRT(6) -> 0.04802397993
A21: P16:0-18:2 | B21: 920.5124652 | D21: 0.8427125194 | E21: 0.9775399416 | F21: 0.8778755445 | G21: 1.181793505 | H21: 1.325313207 | I21: 0.7492011805 | J21: 0.7833974828 | K21: 1.171005987 | L21: 0.8677066158 | M21: =AVERAGE(D21:L21) -> 0.975171776 | N21: =STDEV(D21:L21)/SQRT(9) -> 0.06770535317 | P21: 1.425821298 | Q21: 1.366635434 | R21: 2.195428717 | S21: 0.8588626056 | T21: 0.6972890242 | U21: 0.9809208215 | V21: 1.25415965 | W21: 0.2212939286
A22: P18:1-16:0/P16:0-18:1 | B22: 922.5281153 | D22: 0.502741044 | E22: 0.9632756793 | F22: 0.7622720157 | G22: 1.128828388 | H22: 1.338824146 | I22: 0.721377724 | J22: 0.616777829 | K22: 0.8890754308 | L22: 0.7401545812 | M22: 0.8514807598 | N22: 0.08678838565 | P22: 1.367017785 | Q22: 1.316334556 | R22: 1.910855183 | S22: 0.8171036369 | T22: 0.5342325831 | U22: 0.8802479532 | V22: 1.13763195 | W22: 0.2012877185
A23: P18:0-16:0/P16:0-18:0 | B23: 924.5437653 | D23: 0.07397660189 | E23: 0.0740759309 | F23: 0.04157598444 | G23: 0.04177988211 | H23: 0.07062379206 | I23: 0.05307027495 | J23: 0.09914030122 | K23: 0.1184012611 | L23: 0.1332813225 | M23: 0.07843615012 | N23: 0.01085227724 | P23: 0.09682555591 | Q23: 0.1448876166 | R23: 0.1742290248 | S23: 0.07093321632 | T23: 0.0514423889 | U23: 0.08382833292 | V23: 0.1036910226 | W23: 0.01907653339
A24: D16:1-18:2 | B24: 934.4917298 | D24: 0.4487678761 | E24: 0.5921234156 | F24: 0.4901702743 | G24: 0.846410293 | H24: 0.8941119788 | I24: 0.4421751984 | J24: 0.3954250087 | K24: 0.6834660295 | L24: 0.4912941277 | M24: 0.5871049113 | N24: 0.06081189612 | P24: 0.9324369686 | Q24: 1.038741941 | R24: 0.9212144557 | S24: 0.6235954461 | T24: 0.472036427 | U24: 0.92134333 | V24: 0.8182280947 | W24: 0.08956180439
A25: D16:0-18:2/D16:1-18:1 | B25: 936.5073798 | D25: 6.14539718 | E25: 6.086121483 | F25: 5.813715217 | G25: 7.682002072 | H25: 7.79867535 | I25: 4.022518505 | J25: 4.711575199 | K25: 6.413527333 | L25: 5.608124516 | M25: 6.031295206 | N25: 0.4084838418 | P25: 7.483710282 | Q25: 6.551508027 | R25: 8.447843239 | S25: 4.819811667 | T25: 3.891619203 | U25: 5.370190452 | V25: 6.094113812 | W25: 0.6995027644
A26: D16:0-18:1 | B26: 938.5230299 | D26: 0.8575914766 | E26: 1.051335473 | F26: 1.01619792 | G26: 1.464692932 | H26: 1.538504847 | I26: 0.9441392988 | J26: 0.8181323012 | K26: 1.183948291 | L26: 0.9626721182 | M26: 1.093023851 | N26: 0.08519997499 | P26: 1.578917076 | Q26: 1.123820351 | R26: 1.613906952 | S26: 0.797609471 | T26: 0.6484323319 | U26: 0.9534640855 | V26: 1.119358378 | W26: 0.1641754159
A27: P16:1-20:4 | B27: 942.4968151 | D27: 0.1045481895 | E27: 0.1676551133 | F27: 0.0756101027 | G27: 0.1397023728 | H27: 0.1977344762 | I27: 0.103090909 | J27: 0.1820024328 | K27: 0.1305373772 | L27: 0.1170135784 | M27: 0.1353216169 | N27: 0.01346212285 | P27: 0.04737596813 | Q27: 0.08475790734 | R27: 0.05921234874 | S27: 0.006850210473 | T27: 0.04685272165 | U27: 0.1131949547 | V27: 0.05970735184 | W27: 0.01483226321
A28: P16:0-20:4 | B28: 944.5124652 | D28: 5.651951184 | E28: 7.260310387 | F28: 5.871999237 | G28: 7.122128581 | H28: 8.111830141 | I28: 5.436347624 | J28: 5.734408839 | K28: 6.308066386 | L28: 5.817636592 | M28: 6.368297663 | N28: 0.3059711088 | P28: 5.592131129 | Q28: 4.346918984 | R28: 5.7584262 | S28: 2.502311869 | T28: 2.861049481 | U28: 3.72370359 | V28: 4.130756876 | W28: 0.5556176917
A29: P16:0-20:3/P18:1-18:2 | B29: 946.5281153 | D29: 0.6716782151 | E29: 0.6860107665 | F29: 0.8375366674 | G29: 0.9302892259 | H29: 0.6918050061 | I29: 0.3405617065 | J29: 0.483832054 | K29: 1.146529938 | L29: 0.5856168706 | M29: 0.7082067167 | N29: 0.08000045523 | P29: 0.7010925868 | Q29: 0.6402282194 | R29: 0.8377705192 | S29: 0.2440281389 | T29: 0.3675358817 | U29: 0.504047172 | V29: 0.5491170863 | W29: 0.08996312069
A30: P18:1-18:1/P18:0-18:2/P16:0-20:2 | B30: 948.5437653 | D30: 0.1819362544 | E30: 0.3068683433 | F30: 0.2967081548 | G30: 0.3910134531 | H30: 0.3879768597 | I30: 0.2596201118 | J30: 0.3043005725 | K30: 0.3543891648 | L30: 0.2727004417 | M30: 0.3061681507 | N30: 0.02205753133 | P30: 0.5697731389 | Q30: 0.4998258842 | R30: 0.7173632194 | S30: 0.2231806998 | T30: 0.2517194148 | U30: 0.3287370644 | V30: 0.4317665702 | W30: 0.07995487307
A31: P18:0-18:1/P16:0-20:1 | B31: 950.5594154 | D31: 0.339521624 | E31: 0.3378929337 | F31: 0.2638927808 | G31: 0.4321414406 | H31: 0.3941425284 | I31: 0.2877876377 | J31: 0.2820775937 | K31: 0.401270226 | L31: 0.3463748273 | M31: 0.3427890658 | N31: 0.01937360776 | P31: 0.5256585179 | Q31: 0.4279979729 | R31: 0.4855354449 | S31: 0.3535076331 | T31: 0.2024301362 | U31: 0.3635512448 | V31: 0.3931134916 | W31: 0.04695019381
A32: A18:0-18:1 | B32: 952.5750655 | D32: 0.01328431982 | E32: 0.01081569634 | F32: 0.001550821494 | G32: 0.02178263321 | H32: 0.04436661498 | I32: 0.01152689383 | J32: 0.01308510327 | K32: 0.02998536748 | L32: 0.09913292979 | M32: 0.02728115335 | N32: 0.009909965807 | P32: 0.07120594499 | Q32: 0.04614777061 | R32: 0.04139137476 | S32: 0.02632235688 | T32: 0.01433002651 | U32: 0.0275249005 | V32: 0.03782039571 | W32: 0.008137754663
A33: D16:1-20:4 | B33: 958.4917298 | D33: 0.5023214976 | E33: 0.4960194158 | F33: 0.4113425655 | G33: 0.6393419053 | H33: 0.6347574643 | I33: 0.3155507907 | J33: 0.4393418137 | K33: 0.441336252 | L33: 0.4296671169 | M33: 0.4788532024 | N33: 0.03486511878 | P33: 0.396818051 | Q33: 0.3527992587 | R33: 0.3851445545 | S33: 0.2338553952 | T33: 0.1657922427 | U33: 0.3856989755 | V33: 0.3200180796 | W33: 0.03947062033
A34: D16:0-20:4/D18:2-18:2 | B34: 960.5073798 | D34: 4.048019986 | E34: 4.40408388 | F34: 4.227060393 | G34: 4.441856527 | H34: 4.658107672 | I34: 2.726355864 | J34: 3.380491295 | K34: 3.667019496 | L34: 3.469987971 | M34: 3.891442565 | N34: 0.2087387974 | P34: 2.98551386 | Q34: 2.767668177 | R34: 3.169756163 | S34: 1.853144433 | T34: 1.558613405 | U34: 2.380059588 | V34: 2.452459271 | W34: 0.2621322251
A35: D18:1-18:2/D16:0-20:3 | B35: 962.5230299 | D35: 5.986313979 | E35: 6.652948364 | F35: 6.004754787 | G35: 9.012053493 | H35: 9.252057186 | I35: 4.544666084 | J35: 5.077353063 | K35: 7.451448396 | L35: 6.033330544 | M35: 6.6683251 | N35: 0.5417571113 | P35: 10.00780262 | Q35: 9.16867337 | R35: 11.16372829 | S35: 6.097615901 | T35: 4.935409394 | U35: 6.980068922 | V35: 8.058883082 | W35: 0.9905635168
A36: D18:0-18:2/D18:1-18:1/D16:0-20:2 | B36: 964.53868 | D36: 10.01929188 | E36: 10.20885426 | F36: 9.957886105 | G36: 11.50468829 | H36: 12.01337218 | I36: 6.337549413 | J36: 7.44286071 | K36: 11.21612111 | L36: 9.350633886 | M36: 9.783473092 | N36: 0.6213191352 | P36: 13.27522437 | Q36: 12.62590525 | R36: 15.36590984 | S36: 8.175688596 | T36: 6.629004623 | U36: 9.152421535 | V36: 10.87069237 | W36: 1.381749392
A37: D18:0-18:1/D16:0-20:1 | B37: 966.55433 | D37: 0.7994284238 | E37: 0.9114448114 | F37: 0.8243704377 | G37: 1.098861904 | H37: 1.221061438 | I37: 0.7595889367 | J37: 0.6196812821 | K37: 1.012483012 | L37: 0.7144117284 | M37: 0.8845924416 | N37: 0.06474787745 | P37: 1.323437235 | Q37: 1.085943049 | R37: 1.094567752 | S37: 0.8293547944 | T37: 0.5434935519 | U37: 0.6651516232 | V37: 0.923658001 | W37: 0.1205008529
A38: P16:0-22:6/P18:2-20:4 | B38: 968.5124652 | D38: 3.416130305 | E38: 4.187339703 | F38: 3.988483511 | G38: 4.067147823 | H38: 4.441455782 | I38: 2.812043191 | J38: 3.537755852 | K38: 3.653963208 | L38: 3.686299509 | M38: 3.754513209 | N38: 0.1614264222 | P38: 3.566090808 | Q38: 3.159068726 | R38: 3.645754508 | S38: 1.729625637 | T38: 2.041047286 | U38: 2.872428833 | V38: 2.835669299 | W38: 0.3240601181
A39: P18:1-20:4/P16:0-22:5 | B39: 970.5281153 | D39: 1.546478272 | E39: 1.798173652 | F39: 1.618539284 | G39: 1.895345547 | H39: 2.064564807 | I39: 1.537934171 | J39: 1.313256281 | K39: 1.635076301 | L39: 1.717521075 | M39: 1.680765488 | N39: 0.07340324608 | P39: 2.023973951 | Q39: 1.30296684 | R39: 1.86124886 | S39: 0.7616017272 | T39: 0.8540610686 | U39: 1.161529827 | V39: 1.327563712 | W39: 0.2115417245
A40: P18:0-20:4/P16:0-22:4/P18:1-20:3 | B40: 972.5437653 | D40: 0.9736528584 | E40: 1.264610092 | F40: 1.17666914 | G40: 1.114904414 | H40: 1.235839984 | I40: 0.8320990733 | J40: 1.039786624 | K40: 1.131491882 | L40: 1.045887685 | M40: 1.090549084 | N40: 0.04505019464 | P40: 1.066873359 | Q40: 1.000722078 | R40: 1.061918381 | S40: 0.4300937099 | T40: 0.5754442248 | U40: 0.6559627592 | V40: 0.7985024185 | W40: 0.1137396457
A41: P18:0-20:3 | B41: 974.5594154 | D41: 0.1896719244 | E41: 0.2144269334 | F41: 0.2122289016 | G41: 0.208409112 | H41: 0.2139637247 | I41: 0.1120507876 | J41: 0.198797525 | K41: 0.2496764897 | L41: 0.1693145596 | M41: 0.1965044398 | N41: 0.01278342008 | P41: 0.09733817465 | Q41: 0.124938712 | R41: 0.122588364 | S41: 0.07900876599 | T41: 0.06888597437 | U41: 0.1254848176 | V41: 0.1030408014 | W41: 0.01023388236
A42: P20:1-18:1/P18:1-20:1 | B42: 976.5750655 | D42: 0.04386717084 | E42: 0.005249688973 | F42: 0 | G42: 0.07581565393 | H42: 0.01215791724 | I42: 0.04271546178 | J42: 0.009205504563 | K42: 0.06046112325 | L42: 0.03475191551 | M42: 0.0315804929 | N42: 0.0088540351 | P42: 0.09757863338 | Q42: 0.03279220152 | R42: 0.0835959872 | S42: 0.1026798762 | T42: 0.006895745772 | U42: 0.04230464062 | V42: 0.06097451411 | W42: 0.0159773276
A43: P18:1-20:0 | B43: 978.5907155 | D43: 0.08331919951 | E43: 0.07394253446 | F43: 0.06293725502 | G43: 0.1191898424 | H43: 0.117731732 | I43: 0.05162519834 | J43: 0.04780417979 | K43: 0.1358747207 | L43: 0.1170402239 | M43: 0.08994054291 | N43: 0.01102062956 | P43: 0.1560874523 | Q43: 0.1953624286 | R43: 0.15022236 | S43: 0.1045808242 | T43: 0.04979828316 | U43: 0.1616660707 | V43: 0.1362862365 | W43: 0.02098081297
A44: P20:0-18:0/P18:0-20:0 | B44: 980.4760797 | D44: 0.0279015045 | E44: 0.03234582669 | F44: 0.009458638109 | G44: 0.04289714113 | H44: 0.04098288002 | I44: 0.02942421417 | J44: 0.04179446928 | K44: 0.06468145278 | L44: 0.05223171533 | M44: 0.03796864911 | N44: 0.005249091307 | P44: 0.1438041281 | Q44: 0.1349298012 | R44: 0.01203353926 | S44: 0.04815850757 | T44: 0.0009111984432 | U44: 0.1074478019 | V44: 0.07454749608 | W44: 0.02552881497
A45: D16:1-22:6 | B45: 982.4917298 | D45: 0.1264986493 | E45: 0.1640824893 | F45: 0.1035879305 | G45: 0.1617636955 | H45: 0.1666664628 | I45: 0.09684548773 | J45: 0.1660665572 | K45: 0.1593177801 | L45: 0.1671024411 | M45: 0.1457701659 | N45: 0.009590716853 | P45: 0.1668959446 | Q45: 0.1423893727 | R45: 0.02335704211 | S45: 0.1055144263 | T45: 0.06508895539 | U45: 0.1587438188 | V45: 0.1103315933 | W45: 0.02324194812
A46: D16:0-22:6 | B46: 984.5073798 | D46: 2.156491791 | E46: 2.338824934 | F46: 2.323797352 | G46: 2.20111073 | H46: 2.162563003 | I46: 1.369418528 | J46: 1.817516319 | K46: 1.798856683 | L46: 1.887143419 | M46: 2.006191418 | N46: 0.1050656226 | P46: 1.526645835 | Q46: 1.490903825 | R46: 1.341870268 | S46: 0.7182062498 | T46: 0.8693229511 | U46: 1.542947516 | V46: 1.248316108 | W46: 0.1479333814
A47: D18:1-20:4D/16:0-22:5 | B47: 986.5230299 | D47: 3.400291963 | E47: 4.155656365 | F47: 3.980348708 | G47: 4.195721878 | H47: 4.776399803 | I47: 2.714174058 | J47: 3.279555628 | K47: 3.654920176 | L47: 3.424519132 | M47: 3.731287524 | N47: 0.20406146 | P47: 3.040851845 | Q47: 2.702031117 | R47: 3.134227213 | S47: 1.560689718 | T47: 1.465425441 | U47: 2.439895302 | V47: 2.390520106 | W47: 0.2955180346
A48: D18:0-20:4/D16:0-22:4 | B48: 988.53868 | D48: 11.26055786 | E48: 11.04382477 | F48: 12.36274773 | G48: 9.915748074 | H48: 10.62263278 | I48: 6.095244021 | J48: 8.883799071 | K48: 9.575641589 | L48: 9.838978897 | M48: 9.955463867 | N48: 0.593215151 | P48: 7.217014993 | Q48: 6.779172385 | R48: 9.18265449 | S48: 4.311979062 | T48: 4.021248988 | U48: 5.785887452 | V48: 6.216326228 | W48: 0.7905158003
A49: D18:0-20:3/D18:1-20:2/D16:0-22:3 | B49: 990.55433 | D49: 0.6123850673 | E49: 0.4994020189 | F49: 0.6482626863 | G49: 0.3514519877 | H49: 0.4874975395 | I49: 0.2639383264 | J49: 0.3563242329 | K49: 0.6120889072 | L49: 0.4974049777 | M49: 0.4809728604 | N49: 0.0444902638 | P49: 0.5579385796 | Q49: 0.4575894874 | R49: 0.474270423 | S49: 0.2082368401 | T49: 0.23007411 | U49: 0.3063208274 | V49: 0.3724050446 | W49: 0.05877415965
A50: P18:2-22:6 | B50: 992.5699801 | D50: 0.125316442 | E50: 0.0490747587 | F50: 0.05012550661 | G50: 0.1298819507 | H50: 0.06961302543 | I50: 0.06166600889 | J50: 0.06522511829 | K50: 0.08281521263 | L50: 0.07368814913 | M50: 0.07860068581 | N50: 0.009918493237 | P50: 0.1461229735 | Q50: 0.1307532803 | R50: 0.1034004098 | S50: 0.1037384252 | T50: 0.03034059194 | U50: 0.1535810518 | V50: 0.1113227888 | W50: 0.01830551876
A51: P18:1-22:6 | B51: 994.5281153 | D51: 0.5772073736 | E51: 0.6749941418 | F51: 0.6120078789 | G51: 0.5672911002 | H51: 0.6684203002 | I51: 0.4751382311 | J51: 0.6162363643 | K51: 0.5406817364 | L51: 0.6317624886 | M51: 0.5959710683 | N51: 0.02117208796 | P51: 0.6725409398 | Q51: 0.6215994607 | R51: 0.6156466557 | S51: 0.3103946255 | T51: 0.2936104735 | U51: 0.4739441521 | V51: 0.4979560512 | W51: 0.06760957261
A52: P18:0-22:6/P18:1-22:5 | B52: 996.5437653 | D52: 0.35913042 | E52: 0.6362073864 | F52: 0.5006010309 | G52: 0.5434876218 | H52: 0.5818315125 | I52: 0.3304629929 | J52: 0.4588073954 | K52: 0.4542851964 | L52: 0.5402156812 | M52: 0.4894476931 | N52: 0.03336024595 | P52: 0.5993911208 | Q52: 0.4724301211 | R52: 0.5760319233 | S52: 0.2576905031 | T52: 0.278711478 | U52: 0.4436856939 | V52: 0.43799014 | W52: 0.05893556182
A53: P18:0-22:5/P18:1-22:4 | B53: 998.5594154 | D53: 0.07139104135 | E53: 0.1832805176 | F53: 0.1042782165 | G53: 0.0610269755 | H53: 0.09496208139 | I53: 0.04103176676 | J53: 0.1220767438 | K53: 0.1329557292 | L53: 0.08937526513 | M53: 0.1000420375 | N53: 0.01418150294 | P53: 0.1397063998 | Q53: 0.09398698862 | R53: 0.05519826158 | S53: 0.0189709658 | T53: 0.02718087985 | U53: 0.09702621952 | V53: 0.0720116192 | W53: 0.01897105296
A54: D18:2-22:6 | B54: 1008.50738 | D54: 0.1766405613 | E54: 0.2316949143 | F54: 0.1391442617 | G54: 0.1417616658 | H54: 0.09962453632 | I54: 0.09030005085 | J54: 0.1380313602 | K54: 0.1816490435 | L54: 0.1728635504 | M54: 0.152412216 | N54: 0.01457097102 | P54: 0.2918124777 | Q54: 0.2217741765 | R54: 0.1334456007 | S54: 0.07510686806 | T54: 0.06580033157 | U54: 0.2343909115 | V54: 0.1703883943 | W54: 0.03779886725
A55: D18:1-22:6 | B55: 1010.52303 | D55: 0.7491352124 | E55: 1.107315258 | F55: 0.9231882155 | G55: 1.179586513 | H55: 1.335576385 | I55: 0.7504513736 | J55: 0.8454824314 | K55: 0.9727067832 | L55: 0.9125490975 | M55: 0.9751101411 | N55: 0.06605761508 | P55: 0.9836381664 | Q55: 0.9986826969 | R55: 0.6323423204 | S55: 0.5042476024 | T55: 0.4977127649 | U55: 0.9932414659 | V55: 0.7683108362 | W55: 0.1018938969
A56: D18:0-22:6/D18:1-22:5 | B56: 1012.53868 | D56: 1.669284738 | E56: 2.081191611 | F56: 2.082817853 | G56: 1.929132464 | H56: 2.089392599 | I56: 1.277529604 | J56: 1.698837438 | K56: 1.775701184 | L56: 1.595860172 | M56: 1.799971962 | N56: 0.09144192779 | P56: 1.732038244 | Q56: 1.570824934 | R56: 1.306966604 | S56: 0.843115027 | T56: 0.8175935676 | U56: 1.472111018 | V56: 1.290441566 | W56: 0.1560540064
A57: D18:0-22:5/D18:1-22:4 | B57: 1014.55433 | D57: 0.2943903364 | E57: 0.240978915 | F57: 0.2821770418 | G57: 0.1715140087 | H57: 0.1968033229 | I57: 0.1425218982 | J57: 0.1614152243 | K57: 0.2797165035 | L57: 0.2523770316 | M57: 0.2246549203 | N57: 0.01921492091 | P57: 0.2393053299 | Q57: 0.2019784073 | R57: 0.2040087679 | S57: 0.1521228017 | T57: 0.08623301083 | U57: 0.1379572667 | V57: 0.1702675974 | W57: 0.02261655248
B58: PE Sum | D58: =SUM(D20:D57) -> 65.18260281 | E58: =SUM(E20:E57) -> 72.39267895 | F58: 69.11731938 | G58: 77.53951039 | H58: 82.38996857 | I58: 47.35834721 | J58: 56.39782782 | K58: 70.14004808 | L58: 63.16621432 | M58: 67.0760575 | N58: 3.55024589 | P58: =SUM(P20:P57) -> 73.16526358 | Q58: 65.83674706 | R58: 79.46186398 | S58: 41.08430547 | T58: 36.38857699 | U58: 53.44953482 | V58: 58.23104865 | W58: 7.131134055
M60: ACSL4floxed HFD | V60: Ad-KO HFD
A61: Phosphatidylinositol (PI) (nmol/mg protein) | B61: MASS:PI | D61: 1 | E61: 2 | F61: 3 | G61: 4 | H61: 5 | I61: 6 | J61: 7 | K61: 8 | L61: 9 | M61: Average | N61: SE | P61: 10 | Q61: 11 | R61: 12 | S61: 13 | T61: 14 | U61: 15 | V61: Average | W61: SE
A62: 16:1-18:2 | B62: 831.502354 | D62: 0.0102777857 | E62: 0.01696983561 | F62: 0.009340812457 | G62: 0.01367381145 | H62: 0.01961122372 | I62: 0.01261402574 | J62: 0.01263249359 | K62: 0.01586993333 | L62: 0.01234605015 | M62: 0.01370399686 | N62: 0.001087873183 | P62: 0.027645853 | Q62: 0.02658461536 | R62: 0.02063969959 | S62: 0.01639640202 | T62: 0.01529746135 | U62: 0.0217779449 | V62: =AVERAGE(P62:U62) -> 0.02139032937 | W62: =STDEV(P62:U62)/SQRT(6) -> 0.00207274556
A63: 16:0-18:2 | B63: 833.5180041 | D63: 0.1447669041 | E63: 0.2307588749 | F63: 0.1364218474 | G63: 0.2685335476 | H63: 0.2835590053 | I63: 0.1927354352 | J63: 0.1686804894 | K63: 0.1856357473 | L63: 0.1741138273 | M63: 0.1983561865 | N63: 0.01732200411 | P63: 0.3602564776 | Q63: 0.2849122258 | R63: 0.255740148 | S63: 0.1623263067 | T63: 0.1905388719 | U63: 0.2276721815 | V63: 0.2469077019 | W63: 0.02890891648
A64: 16:1-20:4 | B64: 855.5029026 | D64: 0.01200536104 | E64: 0.01419954624 | F64: 0.01127419976 | G64: 0.01322413941 | H64: 0.01646907257 | I64: 0.01083215806 | J64: 0.01091952389 | K64: 0.01366699252 | L64: 0.01156438492 | M64: 0.01268393093 | N64: 0.0006250111068 | P64: 0.0138029932 | Q64: 0.01379747908 | R64: 0.01141754008 | S64: 0.009496630165 | T64: 0.00684434286 | U64: 0.01517289076 | V64: 0.01175531269 | W64: 0.001282921674
A65: 16:0-20:4 | B65: 857.5185527 | D65: 1.088806475 | E65: 0.982020896 | F65: 0.9921354508 | G65: 0.9930746249 | H65: 1.023794786 | I65: 0.8006888661 | J65: 0.8538459945 | K65: 0.9786344859 | L65: 0.8490066163 | M65: 0.9513342439 | N65: 0.03160345625 | P65: 0.8835194073 | Q65: 0.6318476519 | R65: 0.815979503 | S65: 0.6068691113 | T65: 0.4206737258 | U65: 0.6812941087 | V65: 0.673363918 | W65: 0.0669738545
A66: 18:0-18:2 | B66: 861.5498528 | D66: 0.09404756956 | E66: 0.143768749 | F66: 0.08158236688 | G66: 0.1761529534 | H66: 0.203847098 | I66: 0.09708868869 | J66: 0.08945914635 | K66: 0.1333291673 | L66: 0.1338301494 | M66: 0.1281228765 | N66: 0.01400925695 | P66: 0.3169550515 | Q66: 0.2943453552 | R66: 0.2861961359 | S66: 0.1353137287 | T66: 0.2026970151 | U66: 0.1980471931 | V66: 0.2389257466 | W66: 0.02893292388
A67: 17:0-20:4 | B67: 871.5336542 | D67: 0.07057946231 | E67: 0.06410727025 | F67: 0.06766276012 | G67: 0.07538992974 | H67: 0.07544606519 | I67: 0.04998487851 | J67: 0.05501828295 | K67: 0.06311486897 | L67: 0.06606747591 | M67: 0.06526344377 | N67: 0.002851037151 | P67: 0.05919855191 | Q67: 0.04188714493 | R67: 0.05687133454 | S67: 0.0373883935 | T67: 0.02677771879 | U67: 0.04448946109 | V67: 0.04443543413 | W67: 0.004968412406
A68: 18:2-20:4 | B68: 881.5185527 | D68: 0.06478988808 | E68: 0.07245621288 | F68: 0.05398443088 | G68: 0.06603855989 | H68: 0.07836692606 | I68: 0.06158022381 | J68: 0.05686433232 | K68: 0.06781728643 | L68: 0.05333378474 | M68: 0.06391462723 | N68: 0.002808851763 | P68: 0.07278874091 | Q68: 0.05681762576 | R68: 0.06556959221 | S68: 0.04867528669 | T68: 0.02662777424 | U68: 0.06193872289 | V68: 0.05540295712 | W68: 0.00664232933
A69: 18:1-20:4 | B69: 883.5342027 | D69: 2.010138914 | E69: 2.226176327 | F69: 1.880931557 | G69: 2.26415429 | H69: 2.469672097 | I69: 1.88813248 | J69: 1.817764783 | K69: 2.167219235 | L69: 1.790245872 | M69: 2.057159506 | N69: 0.0785355007 | P69: 2.221027717 | Q69: 1.70481652 | R69: 2.280459949 | S69: 1.659070982 | T69: 0.9720948364 | U69: 1.739057182 | V69: 1.762754531 | W69: 0.193032348
A70: 18:0-20:4 | B70: 885.5498528 | D70: 6.660905087 | E70: 5.84501983 | F70: 6.224674266 | G70: 6.652710587 | H70: 6.265695087 | I70: 4.299147001 | J70: 4.800186784 | K70: 5.802334552 | L70: 5.64496321 | M70: 5.799515156 | N70: 0.267284331 | P70: 5.369203573 | Q70: 4.121076305 | R70: 5.737566458 | S70: 3.674789623 | T70: 2.582325778 | U70: 4.422196784 | V70: 4.317859753 | W70: 0.4689036243
A71: 17:0-22:4 | B71: 899.5649543 | D71: 0.005381909831 | E71: 0.006796510194 | F71: 0.008493765842 | G71: 0.01083020921 | H71: 0.01076945865 | I71: 0.00417284775 | J71: 0.005039134457 | K71: 0.00549328112 | L71: 0.009131683048 | M71: 0.007345422234 | N71: 0.0008444959925 | P71: 0.00849533425 | Q71: 0.006634997466 | R71: 0.008751343178 | S71: 0.003871015035 | T71: 0.003477076743 | U71: 0.005469469006 | V71: 0.00611653928 | W71: 0.000918286403
B72: PI Sum | D72: =SUM(D62:D71) -> 10.16169936 | E72: 9.602274052 | F72: 9.466501458 | G72: 10.53378265 | H72: 10.44723082 | I72: 7.416976604 | J72: 7.870410965 | K72: 9.43311555 | L72: 8.744603054 | M72: 9.29739939 | N72: 0.3654449889 | P72: =SUM(P62:P71) -> 9.3328937 | Q72: 7.182719921 | R72: 9.539191703 | S72: 6.35419748 | T72: 4.447354601 | U72: 7.417115938 | V72: 7.378912224 | W72: 0.7782217418
M74: ACSL4floxed HFD | V74: Ad-KO HFD
A75: Phosphatidylserine (PS) (nmol/mg protein) | B75: MASS:PS | D75: 1 | E75: 2 | F75: 3 | G75: 4 | H75: 5 | I75: 6 | J75: 7 | K75: 8 | L75: 9 | M75: Average | N75: SE | P75: 10 | Q75: 11 | R75: 12 | S75: 13 | T75: 14 | U75: 15 | V75: Average | W75: SE
A76: 16:0-18:2 | B76: 758.4972091 | D76: 0.1740684744 | E76: 0.1934011562 | F76: 0.1829278359 | G76: 0.3408610918 | H76: 0.3398378344 | I76: 0.1746244187 | J76: 0.1854470022 | K76: 0.240671572 | L76: 0.2323117037 | M76: 0.229350121 | N76: =STDEV(D76:L76)/SQRT(9) -> 0.02242424935 | P76: 0.3051224181 | Q76: 0.2526215357 | R76: 0.4045437231 | S76: 0.2021525417 | T76: 0.1957433676 | U76: 0.2221293768 | V76: =AVERAGE(P76:U76) -> 0.2637188272 | W76: =STDEV(P76:U76)/SQRT(6) -> 0.03256266344
A77: 18:2-18:2 | B77: 782.4972091 | D77: 0.285697931 | E77: 0.3140009108 | F77: 0.3109205959 | G77: 0.5923613014 | H77: 0.4661034198 | I77: 0.2148887731 | J77: 0.2213242736 | K77: 0.2910850026 | L77: 0.3418431353 | M77: 0.3375805937 | N77: 0.04016264114 | P77: 0.2169486987 | Q77: 0.1891043767 | R77: 0.3428148243 | S77: 0.1230881564 | T77: 0.140177978 | U77: 0.1035566611 | V77: 0.1859484492 | W77: 0.03578304727
A78: 18:1-18:2 | B78: 784.5128591 | D78: 0.055498789 | E78: 0.1018184918 | F78: 0.07408955853 | G78: 0.2620265472 | H78: 0.2463979096 | I78: 0.09552517247 | J78: 0.05119744984 | K78: 0.1410691301 | L78: 0.09974196841 | M78: 0.1252627797 | N78: 0.02600335082 | P78: 0.3387461575 | Q78: 0.2714411827 | R78: 0.3653045054 | S78: 0.1448635723 | T78: 0.1403055348 | U78: 0.1616552224 | V78: 0.2370526959 | W78: 0.04143922518
A79: 18:0-18:2 | B79: 786.5285092 | D79: 1.087975588 | E79: 1.285104581 | F79: 1.230038703 | G79: 2.806857013 | H79: 2.225150743 | I79: 0.9599323555 | J79: 0.7911054412 | K79: 1.711914254 | L79: 1.364845512 | M79: 1.495880466 | N79: 0.2166592408 | P79: 2.491847437 | Q79: 2.421358753 | R79: 3.435474554 | S79: 1.519237355 | T79: 1.185811652 | U79: 1.54127302 | V79: 2.099167128 | W79: 0.3428073029
A80: 17:0-20:4 | B80: 796.5134077 | D80: 0.203321379 | E80: 0.2185405854 | F80: 0.1899722799 | G80: 0.2540072017 | H80: 0.2637601586 | I80: 0.1140525541 | J80: 0.1533029608 | K80: 0.1864679643 | L80: 0.2029641395 | M80: 0.1984876915 | N80: 0.01544541061 | P80: 0.1851337921 | Q80: 0.1158248552 | R80: 0.1278403612 | S80: 0.07148129075 | T80: 0.06327870617 | U80: 0.1326590485 | V80: 0.1160363423 | W80: 0.01821965267
A81: 17:0-20:1 | B81: 802.5603579 | D81: 0.02225004115 | E81: 0.01856083667 | F81: 0.01013789924 | G81: 0.01571540329 | H81: 0.009624130802 | I81: 0.01291912033 | J81: 0.01172515395 | K81: 0.005982583022 | L81: 0 | M81: 0.01187946316 | N81: 0.002211156008 | P81: 0.02265435477 | Q81: 0.0009878609252 | R81: 0.01351899698 | S81: 0.01641270446 | T81: 0.005263723891 | U81: 0.002115730132 | V81: 0.01015889519 | W81: 0.003555746523
A82: 18:2-20:4 | B82: 806.4972091 | D82: 0.1524801842 | E82: 0.2080838367 | F82: 0.1838614309 | G82: 0.3833783518 | H82: 0.3004106674 | I82: 0.1378919405 | J82: 0.1359319645 | K82: 0.1621495422 | L82: 0.2066154214 | M82: 0.2078670377 | N82: 0.02768257308 | P82: 0.1836605596 | Q82: 0.1555239902 | R82: 0.2293423628 | S82: 0.09095212346 | T82: 0.1333002043 | U82: 0.1002103992 | V82: 0.1488316066 | W82: 0.02136594383
A83: 18:1-20:4 | B83: 808.5128591 | D83: 0.4986586943 | E83: 0.719633133 | F83: 0.5665811547 | G83: 1.132535831 | H83: 1.017863479 | I83: 0.509102378 | J83: 0.4823292597 | K83: 0.6518231655 | L83: 0.6169973231 | M83: 0.6883916021 | N83: 0.07805526148 | P83: 0.6258179426 | Q83: 0.5034351547 | R83: 0.5671451634 | S83: 0.2989931761 | T83: 0.2666562635 | U83: 0.3995396377 | V83: 0.4435978897 | W83: 0.05950029879
A84: 18:0-20:4 | B84: 810.5285092 | D84: 6.551225076 | E84: 7.137018823 | F84: 6.631628021 | G84: 10.248932 | H84: 7.618290229 | I84: 3.809317137 | J84: 4.817644586 | K84: 6.281451476 | L84: 6.573812263 | M84: 6.629924401 | N84: 0.5974737284 | P84: 4.735883356 | Q84: 4.655041751 | R84: 5.350826504 | S84: 3.164146501 | T84: 2.663706205 | U84: 3.856190247 | V84: 4.070965761 | W84: 0.4191313574
A85: 17:0-22:4 | B85: 824.5447079 | D85: 0.4261609248 | E85: 0.4114484349 | F85: 0.3727828188 | G85: 0.3436695384 | H85: 0.4376824092 | I85: 0.1548227416 | J85: 0.2664831844 | K85: 0.3441579191 | L85: 0.4267472239 | M85: =AVERAGE(D85:L85) -> 0.3537727995 | N85: =STDEV(D85:L85)/SQRT(9) -> 0.03088714087 | P85: 0.3438676568 | Q85: 0.2018538198 | R85: 0.2203638694 | S85: 0.09315300122 | T85: 0.1057487546 | U85: 0.2452702765 | V85: 0.2017095631 | W85: 0.0380558656
A86: 18:1-22:6 | B86: 832.5128591 | D86: 0.3790656039 | E86: 0.6324911225 | F86: 0.4092615192 | G86: 1.046224518 | H86: 0.9423851468 | I86: 0.4568609753 | J86: 0.414770283 | K86: 0.4546506047 | L86: 0.4842456011 | M86: 0.5799950416 | N86: 0.08235385444 | P86: 0.7688126809 | Q86: 0.5845839282 | R86: 0.4691037869 | S86: 0.2846921358 | T86: 0.3688618442 | U86: 0.5019412699 | V86: 0.4963326077 | W86: 0.06924522524
A87: 18:0-22:6 | B87: 834.5285092 | D87: 4.468232568 | E87: 6.084407311 | F87: 4.837517965 | G87: 9.977658131 | H87: 7.558765952 | I87: 3.634002052 | J87: 4.025875175 | K87: 4.824091016 | L87: 5.305587234 | M87: 5.635126378 | N87: 0.6678968581 | P87: 6.248441663 | Q87: 5.863557822 | R87: 4.79240436 | S87: 3.127352068 | T87: 3.517177387 | U87: 5.220144743 | V87: 4.79484634 | W87: 0.5114992144
B88: PS Sum | D88: =SUM(D76:D87) -> 14.30463525 | E88: 17.32450922 | F88: 14.99971978 | G88: 27.40422692 | H88: 21.42627208 | I88: 10.27393962 | J88: 11.55713673 | K88: 15.29551423 | L88: 15.85571153 | M88: 16.49351837 | N88: 1.731978014 | P88: =SUM(P76:P87) -> 16.46693672 | Q88: 15.21533503 | R88: 16.31868301 | S88: 9.136524627 | T88: 8.78603162 | U88: 12.48668563 | V88: 13.06836611 | W88: 1.424317801
M90: ACSL4floxed HFD | V90: Ad-KO HFD
A91: Lyso-Phosphatidylethanolamine (LPE) (nmol/mg protein) | B91: MASS:LPE | D91: 1 | E91: 2 | F91: 3 | G91: 4 | H91: 5 | I91: 6 | J91: 7 | K91: 8 | L91: 9 | M91: Average | N91: SE | P91: 10 | Q91: 11 | R91: 12 | S91: 13 | T91: 14 | U91: 15 | V91: Average | W91: SE
A92: P16:0 | B92: 460.2827996 | D92: 0.5512932226 | E92: 0.6280217333 | F92: 0.6087750243 | G92: 0.8669399956 | H92: 0.8876214993 | I92: 0.5093776061 | J92: 0.5833146159 | K92: 0.7301596559 | L92: 0.6182774861 | M92: 0.6648645377 | N92: 0.04489453776 | P92: 0.7497792236 | Q92: 0.441411004 | R92: 0.6032095338 | S92: 0.2926702289 | T92: 0.258169063 | U92: 0.529307766 | V92: =AVERAGE(P92:U92) -> 0.4790911366 | W92: =STDEV(P92:U92)/SQRT(6) -> 0.07663294258
A93: 16:0 | B93: 476.2777143 | D93: 0.6264752002 | E93: 0.4384627071 | F93: 0.6026253366 | G93: 0.9074697587 | H93: 0.7528745881 | I93: 0.4255711249 | J93: 0.5238001125 | K93: 0.5728736595 | L93: 0.612021747 | M93: 0.6069082483 | N93: 0.0501931158 | P93: 0.5682379479 | Q93: 0.4094430069 | R93: 0.4874931202 | S93: 0.315023256 | T93: 0.2262457294 | U93: 0.4258132407 | V93: 0.4053760502 | W93: 0.04964968246
A94: P18:1 | B94: 486.2984497 | D94: 0.1606309232 | E94: 0.1656938369 | F94: 0.1735369804 | G94: 0.2731809331 | H94: 0.3446374717 | I94: 0.1583930426 | J94: 0.1481378041 | K94: 0.1904553775 | L94: 0.1679396402 | M94: 0.1980673344 | N94: 0.02211358042 | P94: 0.2312747043 | Q94: 0.1720290227 | R94: 0.2350576746 | S94: 0.06655137535 | T94: 0.09650486519 | U94: 0.1494904993 | V94: 0.1584846902 | W94: 0.02811843144
A95: P18:0 | B95: 488.3140998 | D95: 0.2389948025 | E95: 0.233539472 | F95: 0.2268551459 | G95: 0.2743264757 | H95: 0.2440006366 | I95: 0.2095631688 | J95: 0.2275943576 | K95: 0.2269166579 | L95: 0.2169148999 | M95: 0.233189513 | N95: 0.006210206432 | P95: 0.2381640123 | Q95: 0.2208095869 | R95: 0.243870322 | S95: 0.1881889227 | T95: 0.2119056584 | U95: 0.2207453853 | V95: 0.2206139813 | W95: 0.008116107052
A96: 18:2 | B96: 500.2777143 | D96: 0.4359671982 | E96: 0.4252794775 | F96: 0.5584191089 | G96: 0.7206419007 | H96: 0.7242158301 | I96: 0.335943921 | J96: 0.3586794207 | K96: 0.438757302 | L96: 0.41636477 | M96: 0.4904743255 | N96: 0.04842900186 | P96: 0.6680651353 | Q96: 0.6631267796 | R96: 1.308772003 | S96: 0.1755068084 | T96: 0.5255998603 | U96: 0.3942427764 | V96: 0.6225522271 | W96: 0.156630124
A97: 18:1 | B97: 502.2933643 | D97: 0.6315429934 | E97: 0.4642181753 | F97: 0.6931992522 | G97: 1.238233313 | H97: 1.074248792 | I97: 0.5755512394 | J97: 0.5928112004 | K97: 0.7114469071 | L97: 0.696510561 | M97: 0.7419736038 | N97: 0.08344551019 | P97: 0.9232616788 | Q97: 0.6896119873 | R97: 0.9346679937 | S97: 0.4407911809 | T97: 0.3380428589 | U97: 0.5938794768 | V97: 0.6533758627 | W97: 0.1002403185
A98: 18:0 | B98: 504.3090144 | D98: 1.337181124 | E98: 0.8904352274 | F98: 1.21048765 | G98: 1.620859629 | H98: 1.470247037 | I98: 0.7486676416 | J98: 1.030353221 | K98: 1.180293297 | L98: 1.230320154 | M98: 1.190982776 | N98: 0.0911326939 | P98: 1.163318257 | Q98: 0.8348974581 | R98: 1.168828343 | S98: 0.7564920693 | T98: 0.4715204478 | U98: 0.8818236873 | V98: 0.8794800437 | W98: 0.1076780298
A99: 20:4 | B99: 524.2777143 | D99: 0.4019200228 | E99: 0.5100648304 | F99: 0.5305371028 | G99: 0.5162727743 | H99: 0.4972201139 | I99: 0.2720302629 | J99: 0.2884348597 | K99: 0.2798427467 | L99: 0.3155764789 | M99: 0.4013221325 | N99: 0.03773102824 | P99: 0.3733291981 | Q99: 0.3577065233 | R99: 0.5897313771 | S99: 0.09413890646 | T99: 0.2340886444 | U99: 0.1686918327 | V99: 0.302947747 | W99: 0.07224132731
A100: 22:6 | B100: 548.2777143 | D100: 0.1744957875 | E100: 0.2369640345 | F100: 0.2539621744 | G100: 0.271852332 | H100: 0.2298137269 | I100: 0.1274948577 | J100: 0.1296186436 | K100: 0.1204074343 | L100: 0.1510878845 | M100: 0.1884107639 | N100: 0.01996853285 | P100: 0.2130494748 | Q100: 0.2235066238 | R100: 0.266658916 | S100: 0.0767011562 | T100: 0.1327453223 | U100: 0.1129137117 | V100: 0.1709292008 | W100: 0.03022438927
B101: LPE SUM | D101: =SUM(D92:D100) -> 4.558501274 | E101: 3.992679494 | F101: 4.858397775 | G101: 6.689777112 | H101: 6.224879696 | I101: 3.362592865 | J101: 3.882744236 | K101: 4.451153038 | L101: 4.425013622 | M101: 4.716193235 | N101: 0.361740243 | P101: =SUM(P92:P100) -> 5.128479632 | Q101: 4.012541993 | R101: 5.838289283 | S101: 2.406063904 | T101: 2.49482245 | U101: 3.476908376 | V101: 3.89285094 | W101: 0.567563862
M103: ACSL4floxed HFD | V103: Ad-KO HFD
A104: Phosphatidylcholine (PC) (nmol/mg protein) | B104: MASS:PC | D104: 1 | E104: 2 | F104: 3 | G104: 4 | H104: 5 | I104: 6 | J104: 7 | K104: 8 | L104: 9 | M104: Average | N104: SE | P104: 10 | Q104: 11 | R104: 12 | S104: 13 | T104: 14 | U104: 15 | V104: Average | W104: SE
A105: D14:0-16:0 | B105: 712.5468549 | D105: 0.02724601903 | E105: 0.02781177538 | F105: 0.01795169438 | G105: 0.0495961436 | H105: 0.0324054908 | I105: 0.02916621852 | J105: 0.02548580889 | K105: 0.03423728142 | L105: 0.02803658309 | M105: 0.0302152239 | N105: 0.002862097661 | P105: 0.0617488367 | Q105: 0.0319234731 | R105: 0.02422259036 | S105: 0.03277303185 | T105: 0.01568511621 | U105: 0.03974556449 | V105: =AVERAGE(P105:U105) -> 0.03434976878 | W105: =STDEV(P105:U105)/SQRT(6) -> 0.006426833182
A106: D16:1-16:1/D14:1-18:1 | B106: 736.5468549 | D106: 0.1473186593 | E106: 0.1234295017 | F106: 0.09471097891 | G106: 0.1485914259 | H106: 0.1457119314 | I106: 0.08420462971 | J106: 0.11462641 | K106: 0.1336261891 | L106: 0.1364650322 | M106: 0.1254094176 | N106: 0.007799373553 | P106: 0.1302289805 | Q106: 0.1339592211 | R106: 0.1473822953 | S106: 0.1063029611 | T106: 0.08376606653 | U106: 0.1300074949 | V106: 0.1219411699 | W106: 0.009358293844
A107: D16:1-16:0/D14:1-18:0 | B107: 738.562505 | D107: 0.6572817077 | E107: 0.6545673981 | F107: 0.5739093044 | G107: 0.725211775 | H107: 0.7758994735 | I107: 0.421672255 | J107: 0.5229330888 | K107: 0.554765496 | L107: 0.6257558275 | M107: 0.6124440362 | N107: 0.03586511437 | P107: 0.6235935535 | Q107: 0.5600500283 | R107: 0.6252061418 | S107: 0.4530139327 | T107: 0.3243237772 | U107: 0.5311624872 | V107: 0.5195583201 | W107: 0.04701195217
A108: D16:0-16:0 | B108: 740.5781551 | D108: 0.3501538409 | E108: 0.4819335451 | F108: 0.3689254436 | G108: 0.536777129 | H108: 0.4986819129 | I108: 0.2985380807 | J108: 0.3604999473 | K108: 0.3915672119 | L108: 0.3654103835 | M108: 0.4058319439 | N108: 0.02672537833 | P108: 0.4552445124 | Q108: 0.3845636196 | R108: 0.3360307837 | S108: 0.2134137838 | T108: 0.1862500195 | U108: 0.3104428056 | V108: 0.3143242541 | W108: 0.04157894473
A109: D17:1-16:1 | B109: 750.5619565 | D109: 0.01788019951 | E109: 0.007738443609 | F109: 0.00524136 | G109: 0.02513524218 | H109: 0.01266807605 | I109: 0.006878533666 | J109: 0.007737412395 | K109: 0.01678106263 | L109: 0.01161598254 | M109: 0.01240847918 | N109: 0.002164425569 | P109: 0.0209473713 | Q109: 0.02842154882 | R109: 0.01919966903 | S109: 0.01510759481 | T109: 0.006421441892 | U109: 0.02724719998 | V109: 0.01955747097 | W109: 0.003327262696
A110: D17:1-16:0 | B110: 752.5776066 | D110: 0.1533799163 | E110: 0.0153200266 | F110: 0.07279076606 | G110: 0.003077767763 | H110: 0.008967501698 | I110: 0.0250751569 | J110: 0.01041314772 | K110: 0.02007387341 | L110: 0.03904090082 | M110: 0.03868211747 | N110: 0.01596266471 | P110: 0.05423872383 | Q110: 0.004283408775 | R110: 0.01000319185 | S110: 0.05197289274 | T110: 0.01093034278 | U110: 0.02581191126 | V110: 0.0262067452 | W110: 0.008993327844
A111: D16:1-18:2 | B111: 762.562505 | D111: 0.5932344985 | E111: 0.6337993241 | F111: 0.455096664 | G111: 0.6450090103 | H111: 0.7036274154 | I111: 0.3678874625 | J111: 0.5066388715 | K111: 0.553704499 | L111: 0.5921956743 | M111: 0.5612437133 | N111: 0.03460649 | P111: 0.6216732552 | Q111: 0.6200511409 | R111: 0.6955670712 | S111: 0.4714657997 | T111: 0.3598715659 | U111: 0.5301141408 | V111: 0.5497904956 | W111: 0.04964729472
A112: D16:0-18:2 | B112: 764.5781551 | D112: 12.04231077 | E112: 12.1833711 | F112: 10.20902455 | G112: 13.35411222 | H112: 13.3954421 | I112: 7.518911951 | J112: 9.17233829 | K112: 10.36549938 | L112: 11.55926664 | M112: 11.08891967 | N112: 0.6508001425 | P112: 12.43861175 | Q112: 8.51436012 | R112: 15.35700291 | S112: 7.353424147 | T112: 6.315145897 | U112: 8.003530989 | V112: 9.663679302 | W112: 1.422921474
A113: D16:0-18:1 | B113: 766.5938051 | D113: 5.036066647 | E113: 4.927864755 | F113: 3.799153359 | G113: 4.98050966 | H113: 5.187359761 | I113: 3.057261306 | J113: 3.379056728 | K113: 4.065408029 | L113: 4.485034635 | M113: 4.324190542 | N113: 0.261244269 | P113: 5.302381224 | Q113: 3.408426409 | R113: 5.386283687 | S113: 2.66742413 | T113: 2.356876844 | U113: 3.244386515 | V113: 3.727629801 | W113: 0.5344588968
A114: D16:0-18:0 | B114: 768.6094552 | D114: 0.1149678249 | E114: 0.126606607 | F114: 0.1079391327 | G114: 0.1632315133 | H114: 0.1323898848 | I114: 0.09436178118 | J114: 0.07608627896 | K114: 0.07885083391 | L114: 0.09082385458 | M114: 0.109473079 | N114: 0.009405817829 | P114: 0.1345295926 | Q114: 0.1126590027 | R114: 0.09983249696 | S114: 0.06134361687 | T114: 0.06293984985 | U114: 0.09428897105 | V114: 0.09426558834 | W114: 0.0116270616
A115: D17:1-18:2 | B115: 776.5776066 | D115: 0.02481383528 | E115: 0.01075307641 | F115: 0.003380084044 | G115: 0.01704526909 | H115: 0.009522471687 | I115: 0.003196563192 | J115: 0.01645714242 | K115: 0.02568924201 | L115: 0.01688577026 | M115: 0.01419371715 | N115: 0.002730908966 | P115: 0.007434055006 | Q115: 0.03611755453 | R115: 0.02799970969 | S115: 0.01907541439 | T115: 0.01280705953 | U115: 0.02675943728 | V115: 0.02169887174 | W115: 0.004330666405
A116: D17:1-18:1 | B116: 778.5932567 | D116: 1.239613142 | E116: 0.8545833051 | F116: 0.7128974679 | G116: 1.073096703 | H116: 1.252138638 | I116: 0.6947867828 | J116: 0.6129827745 | K116: 0.7736190714 | L116: 0.9062864074 | M116: 0.9022226992 | N116: 0.07877797174 | P116: 1.156895146 | Q116: 0.8487514272 | R116: 1.300453201 | S116: 0.6225362391 | T116: 0.4467995555 | U116: 0.7485409323 | V116: 0.8539960835 | W116: 0.1318588598
A117: D17:1-18:0 | B117: 780.6089067 | D117: 0.09917255823 | E117: 0.1048741931 | F117: 0.07371128736 | G117: 0.1156361017 | H117: 0.09658148708 | I117: 0.06333132879 | J117: 0.07911901077 | K117: 0.09646560122 | L117: 0.09155394456 | M117: 0.09116061253 | N117: 0.005442802062 | P117: 0.1037592397 | Q117: 0.08220717962 | R117: 0.1351203016 | S117: 0.08459062335 | T117: 0.05107430013 | U117: 0.08794999285 | V117: 0.0907836062 | W117: 0.01130025974
A118: D18:2-18:3/D16:1-20:4 | B118: 786.562505 | D118: 0.1424904828 | E118: 0.08454425051 | F118: 0.08650622667 | G118: 0.08024454117 | H118: 0.1056072733 | I118: 0.008556849171 | J118: 0.07525822875 | K118: 0.08183719871 | L118: 0.08502110882 | M118: 0.08334068444 | N118: 0.011594172 | P118: 0.09177706497 | Q118: 0.03514249376 | R118: 0.08085313015 | S118: 0.004559789666 | T118: 0.04014115742 | U118: 0.03632631762 | V118: 0.0481333256 | W118: 0.01322378732
A119: D18:2-18:2/D16:0-20:4 | B119: 788.5781551 | D119: 2.718454705 | E119: 2.570456739 | F119: 2.567548834 | G119: 2.279272626 | H119: 2.46687715 | I119: 1.526691639 | J119: 2.004163237 | K119: 1.703011063 | L119: 2.206559582 | M119: 2.227003953 | N119: 0.1369715847 | P119: 1.438059182 | Q119: 1.042425687 | R119: 1.795710958 | S119: 0.8674335735 | T119: 0.8961631578 | U119: 1.094403437 | V119: 1.189032666 | W119: 0.1471642596
A120: D18:1-18:2/D16:0-20:3 | B120: 790.5938051 | D120: 6.25022039 | E120: 6.977147965 | F120: 5.220565125 | G120: 7.351832725 | H120: 8.545448425 | I120: 4.549337869 | J120: 5.063776938 | K120: 5.292958136 | L120: 6.388854316 | M120: 6.182237988 | N120: 0.4292250846 | P120: 7.393941965 | Q120: 4.828184435 | R120: 9.04690187 | S120: 3.924836929 | T120: 3.549861865 | U120: 4.574813423 | V120: 5.553090081 | W120: 0.8896085563
A121: D18:0-18:2/D18:1-18:1 | B121: 792.6094552 | D121: 22.9306612 | E121: 24.02925442 | F121: 20.5465023 | G121: 24.77011641 | H121: 25.67489538 | I121: 14.02869743 | J121: 16.81570917 | K121: 18.90987155 | L121: 21.89654746 | M121: =AVERAGE(D121:L121) -> 21.06691726 | N121: =STDEV(D121:L121)/SQRT(9) -> 1.293237766 | P121: 24.15930716 | Q121: 17.11546093 | R121: 32.23840718 | S121: 14.7719251 | T121: 12.40739843 | U121: 17.32820708 | V121: 19.67011765 | W121: 2.982532039
A122: D18:0-18:1 | B122: 794.6251053 | D122: 3.049529262 | E122: 3.044680751 | F122: 2.434735738 | G122: 3.156106118 | H122: 3.249061714 | I122: 1.990750293 | J122: 2.209540626 | K122: 2.587807325 | L122: 2.736422245 | M122: 2.717626008 | N122: 0.1479276027 | P122: 3.245688864 | Q122: 2.465106539 | R122: 3.831587403 | S122: 2.244046338 | T122: 1.589402172 | U122: 2.465581964 | V122: 2.640235547 | W122: 0.3218842276
A123: D17:1-20:2 | B123: 804.6089067 | D123: 0.02238900447 | E123: 0.02074319016 | F123: 0.007346824324 | G123: 0.03163312476 | H123: 0.03752749441 | I123: 0.01462692053 | J123: 0.01568880674 | K123: 0.01225366837 | L123: 0.01527995656 | M123: 0.01972099893 | N123: 0.003201443772 | P123: 0.02981358005 | Q123: 0.04021457647 | R123: 0.05834231882 | S123: 0.04561562117 | T123: 0.01552679938 | U123: 0.03118859471 | V123: 0.03678358177 | W123: 0.006017450706
A124: D17:1-20:1 | B124: 806.6245568 | D124: 0.08368441016 | E124: 0.07949346471 | F124: 0.05455220783 | G124: 0.09823601658 | H124: 0.1129029705 | I124: 0.05194848663 | J124: 0.06561807028 | K124: 0.07725564986 | L124: 0.08524296242 | M124: 0.078770471 | N124: 0.006552905522 | P124: 0.1120505929 | Q124: 0.09089594749 | R124: 0.152653542 | S124: 0.09150556987 | T124: 0.05723632232 | U124: 0.089022657 | V124: 0.09889410527 | W124: 0.01292871167
A125: D16:0-22:6/D18:2-20:4 | B125: 812.5781551 | D125: 0.7677712892 | E125: 0.6947617444 | F125: 1.188396484 | G125: 0.613803316 | H125: 0.5985118782 | I125: 0.3636640418 | J125: 0.520968564 | K125: 0.4574235326 | L125: 0.547449507 | M125: 0.6391944841 | N125: 0.0794857211 | P125: 0.4418638013 | Q125: 0.319243439 | R125: 0.4198849826 | S125: 0.2265345399 | T125: 0.2218438334 | U125: 0.3537968135 | V125: 0.3305279016 | W125: 0.03815581993
A126: D18:1-20:4/D16:0-22:5 | B126: 814.5938051 | D126: 1.022080184 | E126: 1.117794619 | F126: 1.100683234 | G126: 0.9854291926 | H126: 1.18858633 | I126: 0.7143923664 | J126: 0.8380554971 | K126: 0.742194936 | L126: 0.963724386 | M126: 0.9636600828 | N126: 0.05577349282 | P126: 0.5890781459 | Q126: 0.4087340899 | R126: 0.7244027444 | S126: 0.3587212671 | T126: 0.3280945667 | U126: 0.4498807339 | V126: 0.476485258 | W126: 0.06200172438
A127: D18:2-20:2/D18:0-20:4 | B127: 816.6094552 | D127: 0.2820953855 | E127: 5.310061116 | F127: 4.197461398 | G127: 4.395361742 | H127: 4.874048048 | I127: 2.893803654 | J127: 3.666921089 | K127: 2.932212464 | L127: 4.203528984 | M127: 3.63949932 | N127: 0.4978411208 | P127: 0.2820953855 | Q127: 1.576137813 | R127: 3.288649527 | S127: 1.408749723 | T127: 1.371162796 | U127: 1.998975255 | V127: 1.654295083 | W127: 0.4008081775
A128: D18:0-20:3 | B128: 818.6251053 | D128: 0.6246388127 | E128: 0.665442762 | F128: 0.6321134853 | G128: 0.6143107779 | H128: 0.6554012978 | I128: 0.3906429024 | J128: 0.4445026772 | K128: 0.455543486 | L128: 0.5975922354 | M128: 0.5644653819 | N128: 0.03470392949 | P128: 0.483017131 | Q128: 0.4155201591 | R128: 0.633185339 | S128: 0.4241779752 | T128: 0.2831780651 | U128: 0.4419239515 | V128: 0.4468337701 | W128: 0.04630956209
A129: D18:0-20:2 | B129: 820.6402069 | D129: 0.1428909033 | E129: 0.1461030456 | F129: 0.1152193292 | G129: 0.1200793411 | H129: 0.1455705577 | I129: 0.07419140808 | J129: 0.110536007 | K129: 0.1440754684 | L129: 0.1283525538 | M129: 0.1252242904 | N129: 0.007882668809 | P129: 0.1268779163 | Q129: 0.1178576245 | R129: 0.2253931146 | S129: 0.1271851053 | T129: 0.07386678147 | U129: 0.1346846097 | V129: 0.1343108586 | W129: 0.02027012368
A130: D18:1-22:6/D18:2-22:5 | B130: 838.5938051 | D130: 0.2075501873 | E130: 0.1798182229 | F130: 0.2705114129 | G130: 0.202803835 | H130: 0.237464446 | I130: 0.1550990074 | J130: 0.1255371039 | K130: 0.1545916191 | L130: 0.155312391 | M130: 0.1876320251 | N130: 0.01540681634 | P130: 0.2817332008 | Q130: 0.1507137781 | R130: 0.2200552912 | S130: 0.1201928206 | T130: 0.07022240904 | U130: 0.1394264687 | V130: 0.1637239947 | W130: 0.03082019513
A131: D18:0-22:6 | B131: 840.6094552 | D131: 0.8810094618 | E131: 0.778775845 | F131: 0.7698127461 | G131: 0.6518276743 | H131: 0.6734015598 | I131: 0.4571525882 | J131: 0.5513375384 | K131: 0.4804421768 | L131: 0.5924873854 | M131: 0.6484718862 | N131: 0.04769923171 | P131: 0.6145350326 | Q131: 0.3873396966 | R131: 0.5583311448 | S131: 0.3127771037 | T131: 0.2729945291 | U131: 0.5023876708 | V131: 0.4413941963 | W131: 0.05633083714
A132: D18:0-22:5 | B132: 842.6251053 | D132: 0.04059645673 | E132: 0.04745556683 | F132: 0.0537130907 | G132: 0.02999904792 | H132: 0.04155908436 | I132: 0.002727656219 | J132: 0.0398575431 | K132: 0.04932017658 | L132: 0.0301295733 | M132: 0.03726202175 | N132: 0.005072406393 | P132: 0.06514992705 | Q132: 0.01689463379 | R132: 0.04102892538 | S132: 0.0102778153 | T132: 0.009629509698 | U132: 0.02696867009 | V132: 0.02832491355 | W132: 0.008803749406
B133: PC Sum | D133: =SUM(D105:D132) -> 59.66950176 | E133: 65.89918676 | F133: 55.74040052 | G133: 67.21808645 | H133: 70.85825975 | I133: 39.88755516 | J133: 47.431846 | K133: 51.19108623 | L133: 59.58087628 | M133: 57.4974221 | N133: 3.347743626 | P133: =SUM(P105:P132) -> 60.46627519 | Q133: 43.77564598 | R133: 77.47969152 | S133: 37.09098344 | T133: 31.41961423 | U133: 43.46757609 | V133: 48.94996441 | W133: 6.955452305
M135: ACSL4floxed HFD | V135: Ad-KO HFD
A136: Lyso Phosphatidylcholine (LPC) (nmol/mg protein) | B136: MASS:LPC | D136: 1 | E136: 2 | F136: 3 | G136: 4 | H136: 5 | I136: 6 | J136: 7 | K136: 8 | L136: 9 | M136: Average | N136: SE | P136: 10 | Q136: 11 | R136: 12 | S136: 13 | T136: 14 | U136: 15 | V136: Average | W136: SE
A137: 16:1 | B137: 516.3066091 | D137: 0.5460239465 | E137: 0.8090088221 | F137: 0.5365104986 | G137: 0.694804611 | H137: 0.9302122474 | I137: 0.6216511031 | J137: 0.4061854875 | K137: 0.6652279325 | L137: 0.5946653277 | M137: 0.6449211085 | N137: 0.05174884392 | P137: 0.549918676 | Q137: 0.7761690854 | R137: 0.9000615904 | S137: 0.2074363466 | T137: 1.039810432 | U137: 0.5805950603 | V137: 0.6756651985 | W137: 0.1207125097
A138: 16:0 | B138: 518.3222591 | D138: 0.7883338401 | E138: 0.6242229933 | F138: 1.04747284 | G138: 1.045521626 | H138: 1.136641222 | I138: 0.7204762389 | J138: 0.7478371166 | K138: 0.8865719956 | L138: 0.9065060389 | M138: 0.8781759901 | N138: 0.05758622951 | P138: 0.9054887023 | Q138: 0.6252923979 | R138: 0.848060521 | S138: 0.522914544 | T138: 0.3778707178 | U138: 0.6467129735 | V138: 0.6543899761 | W138: 0.08066662778
A139: 18:2 | B139: 542.3222591 | D139: 0.6872204174 | E139: 0.7669819645 | F139: 1.130958486 | G139: 1.095189712 | H139: 1.612126856 | I139: 0.82970384 | J139: 0.9083292218 | K139: 0.9856491139 | L139: 0.8014859274 | M139: 0.9797383932 | N139: 0.09327098147 | P139: 1.531271585 | Q139: 1.022299653 | R139: 1.435441051 | S139: 0.2723772701 | T139: 0.6314166304 | U139: 0.8863427125 | V139: 0.9631914836 | W139: 0.1951437928
A140: 18:1 | B140: 544.3379092 | D140: 0.4251348837 | E140: 0.4040508578 | F140: 0.6611966349 | G140: 0.6949031308 | H140: 0.9231667165 | I140: 0.5333284763 | J140: 0.4883023321 | K140: 0.6136258756 | L140: 0.563504613 | M140: 0.5896903912 | N140: 0.05318268839 | P140: 0.8328219704 | Q140: 0.5285638537 | R140: 0.7147794123 | S140: 0.2900028913 | T140: 0.3017206166 | U140: 0.4948418427 | V140: 0.5271217645 | W140: 0.08883376219
A141: 18:0 | B141: 546.3535593 | D141: 1.548807605 | E141: 1.261110164 | F141: 1.861888728 | G141: 1.968857407 | H141: 2.269207505 | I141: 1.322160751 | J141: 1.375731401 | K141: 1.732232314 | L141: 1.678308423 | M141: 1.668700478 | N141: 0.1104648011 | P141: 1.862559804 | Q141: 1.206087761 | R141: 1.660840698 | S141: 1.091377136 | T141: 0.6512728914 | U141: 1.434016274 | V141: 1.317692427 | W141: 0.1766306543
A142: 20:4 | B142: 566.3222591 | D142: 0.1334482894 | E142: 0.1535846377 | F142: 0.2062859816 | G142: 0.1385356523 | H142: 0.2157859948 | I142: 0.1309838012 | J142: 0.1475428653 | K142: 0.1109581672 | L142: 0.1233360331 | M142: 0.1511623803 | N142: 0.01207894971 | P142: 0.1022718038 | Q142: 0.07921407275 | R142: 0.1035994259 | S142: 0.01751346845 | T142: 0.05287963892 | U142: 0.06664310984 | V142: 0.07035358661 | W142: 0.01330883316
A143: 20:3 | B143: 568.3379092 | D143: 0.01360048682 | E143: 0.01875699699 | F143: 0.02760788893 | G143: 0.00589112134 | H143: 0.01184016013 | I143: 0.01257880665 | J143: 0.01565833992 | K143: 0.01277867617 | L143: 0.01752349855 | M143: 0.01513733061 | N143: 0.001991010915 | P143: 0.01790645089 | Q143: 0.009706687693 | R143: 0.01297235599 | S143: 0.004130296481 | T143: 0.005307832137 | U143: 0.01140588642 | V143: 0.0102382516 | W143: 0.002077969283
A144: 22:6 | B144: 590.3222591 | D144: 0.01845320464 | E144: 0.02550276285 | F144: 0.03080621206 | G144: 0.009691090071 | H144: 0.01579070649 | I144: 0.01372172989 | J144: 0.01606966282 | K144: 0.009126097234 | L144: 0.01929956003 | M144: 0.01760678068 | N144: 0.002343691546 | P144: 0.01642180327 | Q144: 0.01072559258 | R144: 0.002935344542 | S144: 0.01026589714 | T144: 0.006272428756 | U144: 0.01388542248 | V144: 0.01008441479 | W144: 0.002005780313
D145: 4.161022673 | E145: 4.0632192 | F145: 5.50272727 | G145: 5.65339435 | H145: 7.114771408 | I145: 4.184604747 | J145: 4.105656428 | K145: 5.016170172 | L145: 4.704629421 | M145: 4.945132852 | N145: 0.3386757232 | P145: 5.818660795 | Q145: 4.258059104 | R145: 5.678690399 | S145: 2.416017851 | T145: 3.066551188 | U145: 4.134443281 | V145: 4.228737103 | W145: 0.5560755405
M147: ACSL4floxed HFD | V147: Ad-KO HFD
A148: Phosphatidylglycerol (PG) (nmol/mg protein) | B148: MASS:PG | D148: 1 | E148: 2 | F148: 3 | G148: 4 | H148: 5 | I148: 6 | J148: 7 | K148: 8 | L148: 9 | M148: Average | N148: SE | P148: 10 | Q148: 11 | R148: 12 | S148: 13 | T148: 14 | U148: 15 | V148: Average | W148: SE
A149: 16:1-16:1 | B149: 717.4712086 | D149: 0.002280885408 | E149: 0.002003261599 | F149: 0.003194854896 | G149: 0.003540441906 | H149: 0.002549042551 | I149: 0.001634288707 | J149: 0.001804932062 | K149: 0.003475702136 | L149: 0.002928581252 | M149: 0.00260133228 | N149: 0.0002397436725 | P149: 0.002342257812 | Q149: 0.003308754372 | R149: 0.00351263429 | S149: 0.002368106171 | T149: 0.002799537074 | U149: 0.003184892851 | V149: =AVERAGE(P149:U149) -> 0.002919363762 | W149: =STDEV(P149:U149)/SQRT(6) -> 0.0002021051961
A150: 16:0-16:1 | B150: 719.4868586 | D150: 0.001828088277 | E150: 0.001702774479 | F150: 0.002374295114 | G150: 0.003223148654 | H150: 0.003139439603 | I150: 0.0006844982865 | J150: 0.0005697858494 | K150: 0.002079886126 | L150: 0.0023197817 | M150: 0.001991299788 | N150: 0.000310385667 | P150: 0.002303525519 | Q150: 0.003163895769 | R150: 0.004356769704 | S150: 0.0003766091352 | T150: 0.001482266437 | U150: 0.002374352023 | V150: 0.002342903098 | W150: 0.0005579496605
A151: 16:1-18:2 | B151: 743.4868586 | D151: 0.01058009885 | E151: 0.009603379331 | F151: 0.01081159463 | G151: 0.01493088577 | H151: 0.01724892122 | I151: 0.005892298242 | J151: 0.007756306174 | K151: 0.01372535434 | L151: 0.0114590592 | M151: 0.01133421086 | N151: 0.001177959798 | P151: 0.01387565512 | Q151: 0.01178552501 | R151: 0.01672435723 | S151: 0.006236117737 | T151: 0.006677948193 | U151: 0.01050834512 | V151: 0.0109679914 | W151: 0.001665983102
A152: 16:0-18:2 | B152: 745.5025087 | D152: 0.07470032402 | E152: 0.0738290484 | F152: 0.08322736942 | G152: 0.1109562867 | H152: 0.1161000901 | I152: 0.0441869725 | J152: 0.05222460817 | K152: 0.08685611129 | L152: 0.08846148214 | M152: 0.08117136586 | N152: 0.0079042804 | P152: 0.09912372668 | Q152: 0.08089514291 | R152: 0.1216130986 | S152: 0.05057766746 | T152: 0.05026617406 | U152: 0.06824696119 | V152: 0.07845379516 | W152: 0.01150613121
A153: 16:0-18:1 | B153: 747.5181588 | D153: 0.1502335367 | E153: 0.1434815817 | F153: 0.1522590134 | G153: 0.1916781465 | H153: 0.1656748612 | I153: 0.07254689206 | J153: 0.1007689713 | K153: 0.1282894768 | L153: 0.1468972354 | M153: 0.1390921906 | N153: 0.01170425252 | P153: 0.1417442411 | Q153: 0.1310096407 | R153: 0.1502419327 | S153: 0.07663711169 | T153: 0.08160767973 | U153: 0.1313815381 | V153: 0.1187703573 | W153: 0.01288846554
A154: 18:2-18:2 | B154: 769.5025087 | D154: 0.0609849324 | E154: 0.04649023696 | F154: 0.04500527514 | G154: 0.06253256408 | H154: 0.07530455291 | I154: 0.03330202442 | J154: 0.04035941348 | K154: 0.05436450963 | L154: 0.05108895208 | M154: 0.05215916235 | N154: 0.004257934151 | P154: 0.05387041953 | Q154: 0.03695358824 | R154: 0.0689368511 | S154: 0.03144552546 | T154: 0.03564942031 | U154: 0.03546152653 | V154: 0.0437195552 | W154: 0.00596854055
A155: 18:1-18:2 | B155: 771.5181588 | D155: 0.1255619612 | E155: 0.1025248283 | F155: 0.1211364469 | G155: 0.1863344889 | H155: 0.1964958474 | I155: 0.06069101096 | J155: 0.0741379752 | K155: 0.1439131979 | L155: 0.1542510595 | M155: 0.1294496462 | N155: 0.01543430654 | P155: 0.154863783 | Q155: 0.1133943992 | R155: 0.2224562377 | S155: 0.07476153803 | T155: 0.07023015841 | U155: 0.08774761023 | V155: 0.1205756211 | W155: 0.02402650076
A156: 18:1-18:1 | B156: 773.5338088 | D156: 0.1782728272 | E156: 0.1601155087 | F156: 0.1884307612 | G156: 0.2663831827 | H156: 0.2867175602 | I156: 0.09536719495 | J156: 0.1156880551 | K156: 0.2076326855 | L156: 0.2374317605 | M156: 0.1928932818 | N156: 0.02146855765 | P156: 0.2409992046 | Q156: 0.1692816309 | R156: 0.3253405622 | S156: 0.1113334459 | T156: 0.1094876707 | U156: 0.137763988 | V156: 0.1823677504 | W156: 0.03483149576
A157: 18:2-20:4/16:0-22:6 | B157: 793.5025087 | D157: 0.003723362924 | E157: 0.002951988927 | F157: 0.004473949659 | G157: 0.005707705325 | H157: 0.004643942204 | I157: 0.001421202598 | J157: 0.001775332876 | K157: 0.003233884876 | L157: 0.004894166843 | M157: 0.003647281803 | N157: 0.0004801116486 | P157: 0.001927650941 | Q157: 0.001912581157 | R157: 0.002285658503 | S157: 0.0002220043477 | T157: 0.0009111614824 | U157: 0.001813449332 | V157: 0.001512084294 | W157: 0.0003187342577
A158: 18:1-20:4 | B158: 795.5181588 | D158: 0.009702321344 | E158: 0.008925794893 | F158: 0.01068789216 | G158: 0.01359946626 | H158: 0.01327169454 | I158: 0.00463475845 | J158: 0.005584641815 | K158: 0.008577305825 | L158: 0.01199538702 | M158: 0.009664362479 | N158: 0.001045153015 | P158: 0.005947031476 | Q158: 0.005499325269 | R158: 0.008044436392 | S158: 0.002501536629 | T158: 0.002732822902 | U158: 0.005047328174 | V158: 0.004962080141 | W158: 0.0008522677779
A159: 18:0-20:4 | B159: 797.5338088 | D159: 0.01682262692 | E159: 0.01704372178 | F159: 0.01829565033 | G159: 0.02055541724 | H159: 0.02258083001 | I159: 0.01136282353 | J159: 0.0107338189 | K159: 0.01513735895 | L159: 0.0200222248 | M159: 0.01695049694 | N159: 0.001339168177 | P159: 0.01352735826 | Q159: 0.01175134205 | R159: 0.01511152173 | S159: 0.006363010126 | T159: 0.006714506911 | U159: 0.01056409028 | V159: 0.01067197156 | W159: 0.001452218911
A160: 18:1-20:2 | B160: 799.5494589 | D160: 0.001895450993 | E160: 0.00176320104 | F160: 0.003115715515 | G160: 0.00424111053 | H160: 0.003982426086 | I160: 0.0006271161961 | J160: 0.0006258551045 | K160: 0.002677656879 | L160: 0.003735246959 | M160: 0.0025181977 | N160: 0.0004578185021 | P160: 0.002608452507 | Q160: 0.002345625059 | R160: 0.004844747949 | S160: 0.0004682491488 | T160: 0.001255382003 | U160: 0.001635394261 | V160: 0.002192975155 | W160: 0.0006162380369
A161: 18:1-20:1 | B161: 801.5651089 | D161: 0.0009920179233 | E161: 0.001847850192 | F161: 0.002550648226 | G161: 0.00275143346 | H161: 0.0025995558 | I161: 0.0004613865203 | J161: 0.001429059922 | K161: 0.001664601096 | L161: 0.002743452945 | M161: 0.00189333401 | N161: 0.0002769534237 | P161: 0.001742986918 | Q161: 0.001968675516 | R161: 0.003664628806 | S161: 0.001013705748 | T161: 0.001024987886 | U161: 0.000838475046 | V161: 0.001708909987 | W161: 0.0004321338846
A162: 18:1-22:6 | B162: 819.5181588 | D162: 0.008233857789 | E162: 0.007347643191 | F162: 0.01054506523 | G162: 0.01448719461 | H162: 0.012591982 | I162: 0.004050889271 | J162: 0.004935422674 | K162: 0.007872650017 | L162: 0.01438049442 | M162: 0.009382799912 | N162: 0.001283616987 | P162: 0.006488930674 | Q162: 0.005605027977 | R162: 0.01206150857 | S162: 0.0013215246 | T162: 0.002643312412 | U162: 0.006323219399 | V162: 0.005740587272 | W162: 0.001527450237
A163: 18:0-22:6 | B163: 821.5338088 | D163: 0.008697108074 | E163: 0.009182244536 | F163: 0.01011014821 | G163: 0.01545376626 | H163: 0.01605282193 | I163: 0.006376650476 | J163: 0.005939038796 | K163: 0.008824851705 | L163: 0.01344045927 | M163: 0.01045300992 | N163: 0.001234624566 | P163: 0.01191443661 | Q163: 0.009350637216 | R163: 0.01313074841 | S163: 0.004485295707 | T163: 0.005118615898 | U163: 0.009146685022 | V163: 0.008857736476 | W163: 0.001426274284
B164: PG Sum | D164: =SUM(D149:D163) -> 0.6545094 | E164: 0.588813064 | F164: 0.66621868 | G164: 0.9163752389 | H164: 0.9389535677 | I164: 0.3432400072 | J164: 0.4243332175 | K164: 0.6883252331 | L164: 0.7660493441 | M164: 0.6652019725 | N164: 0.06628649074 | P164: =SUM(P149:P163) -> 0.7532796607 | Q164: 0.5882257914 | R164: 0.9723256939 | S164: 0.3701114479 | T164: 0.3786016444 | U164: 0.5120378555 | V164: 0.5957636823 | W164: 0.09517621333
M166: ACSL4floxed HFD | V166: Ad-KO HFD
A167: Phosphatidic acid (PA) (nmol/mg protein) | B167: MASS:PA | D167: 1 | E167: 2 | F167: 3 | G167: 4 | H167: 5 | I167: 6 | J167: 7 | K167: 8 | L167: 9 | M167: Average | N167: SE | P167: 10 | Q167: 11 | R167: 12 | S167: 13 | T167: 14 | U167: 15 | V167: Average | W167: SE
A168: 16:1-16:1 | B168: 643.4344291 | D168: 0.001699408686 | E168: 0.001976205584 | F168: 0.001567035957 | G168: 0.0007079290433 | H168: 0.002143949347 | I168: 0.001135510334 | J168: 0.002564084974 | K168: 0.009765003672 | L168: 0.003028485528 | M168: 0.002731957014 | N168: 0.0009095580205 | P168: 0.001358155536 | Q168: 0.003410385706 | R168: 0.005585150988 | S168: 0.008553204251 | T168: 0.00226287256 | U168: 0.001680748777 | V168: =AVERAGE(P168:U168) -> 0.003808419636 | W168: =STDEV(P168:U168)/SQRT(6) -> 0.001136481112
A169: 16:0-16:1 | B169: 645.4500792 | D169: 0.0006288609005 | E169: 0.001625006097 | F169: 0.0005176196272 | G169: 0.001368541274 | H169: 0.0008607029318 | I169: 0.0002386243192 | J169: 0.0001346135061 | K169: 0.0007729747245 | L169: 0.0003719887301 | M169: 0.0007243257901 | N169: 0.0001669519613 | P169: 0.0009860188644 | Q169: 0.0008680464083 | R169: 0.001753947561 | S169: 0.0009306778758 | T169: 0.0004943812189 | U169: 0.0006129421574 | V169: 0.0009410023476 | W169: 0.0001803172658
A170: 16:0-18:2 | B170: 671.4657292 | D170: 0.03299572195 | E170: 0.0716210817 | F170: 0.04545404704 | G170: 0.05168782355 | H170: 0.0547074769 | I170: 0.02114055903 | J170: 0.02964643215 | K170: 0.120129548 | L170: 0.04553249351 | M170: 0.05254613154 | N170: 0.009810137559 | P170: 0.05645410404 | Q170: 0.06169870491 | R170: 0.08187328651 | S170: 0.06552778332 | T170: 0.01928745663 | U170: 0.03370294883 | V170: 0.05309071404 | W170: 0.00928632098
A171: 16:0-18:1 | B171: 673.4813793 | D171: 0.01417769511 | E171: 0.0299361978 | F171: 0.01912387211 | G171: 0.01919919145 | H171: 0.01709177504 | I171: 0.006313434345 | J171: 0.003109286679 | K171: 0.02356424826 | L171: 0.00976121259 | M171: 0.01580854593 | N171: 0.002824826081 | P171: 0.02607243037 | Q171: 0.02308924802 | R171: 0.02626567433 | S171: 0.007253063066 | T171: 0.007096453469 | U171: 0.01215182744 | V171: 0.01698811611 | W171: 0.00374978932
A172: 18:0-18:2/18:1-18:1 | B172: 699.4970294 | D172: 0.06802505284 | E172: 0.1118169605 | F172: 0.08482819764 | G172: 0.1261214005 | H172: 0.1179485693 | I172: 0.04525192758 | J172: 0.03734389019 | K172: 0.1295093741 | L172: 0.07557494942 | M172: 0.0884911469 | N172: 0.01154408373 | P172: 0.206298869 | Q172: 0.154345522 | R172: 0.151045471 | S172: 0.08070002265 | T172: 0.05083304004 | U172: 0.09252196372 | V172: 0.1226241481 | W172: 0.0235465589
A173: 18:0-20:4 | B173: 723.4970294 | D173: 0.07289694958 | E173: 0.1013723658 | F173: 0.092948761 | G173: 0.1012581124 | H173: 0.09490232398 | I173: 0.04087592378 | J173: 0.04178726636 | K173: 0.07154305302 | L173: 0.06959706303 | M173: 0.07635353544 | N173: 0.007817240055 | P173: 0.0639256818 | Q173: 0.05658679812 | R173: 0.06385956839 | S173: 0.04157518389 | T173: 0.02653541282 | U173: 0.04477049813 | V173: 0.04954219052 | W173: 0.005991807433
A174: 18:0-20:3 | B174: 725.5126794 | D174: 0.003998877233 | E174: 0.0003381782784 | F174: 0.002899598843 | G174: 0.007131459343 | H174: 0.004365056577 | I174: 0.002373545717 | J174: 0.001847848836 | K174: 0.005525831476 | L174: 0.006986756571 | M174: 0.003940794764 | N174: 0.000773282717 | P174: 0.03033594425 | Q174: 0.01848716127 | R174: 0 | S174: 0.003750340978 | T174: 0.004333643809 | U174: 0.01141943745 | V174: 0.01138775462 | W174: 0.004644738925
A175: 18:0-20:2 | B175: 727.5283295 | D175: 0.01577090331 | E175: 0.007523022618 | F175: 0.01750971913 | G175: 0.03664712509 | H175: 0.02584319122 | I175: 0.007030016331 | J175: 0.01304042989 | K175: 0.02668692472 | L175: 0.02979504097 | M175: 0.01998293036 | N175: 0.003432569978 | P175: 0.1016998407 | Q175: 0.05697356257 | R175: 0.0179790303 | S175: 0.005391637811 | T175: 0.01833793934 | U175: 0.03904244091 | V175: 0.03990407528 | W175: 0.01443114756
B176: Sum | D176: =SUM(D168:D175) -> 0.2101934696 | E176: 0.3262090184 | F176: 0.2648488513 | G176: 0.3441215826 | H176: 0.3178630453 | I176: 0.1243595414 | J176: 0.1294738526 | K176: 0.3874969579 | L176: 0.2406479903 | M176: 0.2605793677 | N176: 0.0310409164 | P176: =SUM(P168:P175) -> 0.4871310446 | Q176: 0.375459429 | R176: 0.3483621291 | S176: 0.2136819138 | T176: 0.1291811999 | U176: 0.2359028074 | V176: 0.2982864206 | W176: 0.05284308698
M178: ACSL4floxed HFD | V178: Ad-KO HFD
A179: Free Fatty Acid (FFA) (nmol/mg protein) | B179: MASS:FFA | D179: 1 | E179: 2 | F179: 3 | G179: 4 | H179: 5 | I179: 6 | J179: 7 | K179: 8 | L179: 9 | M179: Average | N179: SE | P179: 10 | Q179: 11 | R179: 12 | S179: 13 | T179: 14 | U179: 15 | V179: Average | W179: SE
A180: 12:0 | B180: 367.2743902 | D180: 5.050845682 | E180: 16.52579855 | F180: 2.367926081 | G180: 1.519328326 | H180: 6.605371676 | I180: 2.288638402 | J180: 8.531882352 | K180: 4.658982833 | L180: 2.419973158 | M180: 5.552083006 | N180: 1.573752015 | P180: 3.171479062 | Q180: 3.046030001 | R180: 2.055721123 | S180: 41.4179467 | T180: 1.098337528 | U180: 1.214766273 | V180: =AVERAGE(P180:U180) -> 8.667380115 | W180: =STDEV(P180:U180)/SQRT(6) -> 6.559852668
A181: 14:1 | B181: 393.2900402 | D181: 0.7117030313 | E181: 0.4828347772 | F181: 0.3485629956 | G181: 0.1245148 | H181: 0.6878483723 | I181: 0.3017049753 | J181: 0.9721120915 | K181: 0.470298912 | L181: 0.6063430501 | M181: 0.5228803339 | N181: 0.08449295554 | P181: 0.9445725437 | Q181: 0.4827731155 | R181: 0.11231 | S181: 0.1317973155 | T181: 0.2108927843 | U181: 0.2146540878 | V181: 0.3494999745 | W181: 0.1307570254
A182: 14:0 | B182: 395.3056903 | D182: 15.31097886 | E182: 8.642742546 | F182: 11.58360563 | G182: 12.7577862 | H182: 13.19281726 | I182: 11.32442956 | J182: 28.40151621 | K182: 8.561095827 | L182: 10.82279009 | M182: 13.39975136 | N182: 2.005023122 | P182: 18.02688379 | Q182: 7.567689365 | R182: 11.94076365 | S182: 10.8921857 | T182: 5.325107135 | U182: 12.20591896 | V182: 10.99309143 | W182: 1.786177254
A183: 15:0 | B183: 409.3213404 | D183: 2.479011482 | E183: 2.508667777 | F183: 2.579332382 | G183: 2.379819595 | H183: 2.862533826 | I183: 1.695666917 | J183: 3.130401277 | K183: 2.778081699 | L183: 2.655018802 | M183: 2.563170417 | N183: 0.1324180356 | P183: 3.438931407 | Q183: 2.248719132 | R183: 2.216458031 | S183: 4.1496782 | T183: 1.157000696 | U183: 3.175351829 | V183: 2.731023216 | W183: 0.4353575289
A184: 16:2 | B184: 419.3056903 | D184: 1.546475703 | E184: 0.7161235995 | F184: 1.011179723 | G184: 1.136203214 | H184: 1.54839143 | I184: 1.141835413 | J184: 3.701474433 | K184: 1.034581116 | L184: 1.135790024 | M184: 1.441339406 | N184: 0.2954122098 | P184: 2.140064391 | Q184: 0.4795669261 | R184: 1.245723278 | S184: 0.6553943817 | T184: 0.5182035977 | U184: 1.315923284 | V184: 1.059145976 | W184: 0.2620862566
A185: 16:1 | B185: 421.3213404 | D185: 105.3798693 | E185: 46.02785289 | F185: 70.17701604 | G185: 83.07214155 | H185: 106.4284081 | I185: 107.2214543 | J185: 253.2140558 | K185: 46.19130701 | L185: 66.4149177 | M185: =AVERAGE(D185:L185) -> 98.23633585 | N185: =STDEV(D185:L185)/SQRT(9) -> 20.97659335 | P185: 120.3974849 | Q185: 38.08630944 | R185: 64.64927606 | S185: 39.91709787 | T185: 31.91461841 | U185: 98.56992779 | V185: 65.58911908 | W185: 14.87951972
A186: 16:0 | B186: 423.3369904 | D186: 323.9948391 | E186: 136.5392004 | F186: 194.2664029 | G186: 261.6320322 | H186: 240.1164376 | I186: 240.5400584 | J186: 681.9144961 | K186: 144.9228316 | L186: 219.0457858 | M186: 271.4413427 | N186: 54.79624235 | P186: 287.8674036 | Q186: 114.4915455 | R186: 188.7850873 | S186: 139.5199893 | T186: 93.57809595 | U186: 213.2149392 | V186: 172.9095102 | W186: 29.3898343
A187: 17:1 | B187: 435.3369904 | D187: 5.067950691 | E187: 3.196068366 | F187: 4.548276917 | G187: 6.311320749 | H187: 5.559312973 | I187: 4.863046 | J187: 11.13989487 | K187: 3.201815045 | L187: 4.251164101 | M187: 5.348761079 | N187: 0.798538723 | P187: 6.869612519 | Q187: 2.71934968 | R187: 4.617924353 | S187: 3.119049102 | T187: 2.224763303 | U187: 4.948040821 | V187: 4.083123297 | W187: 0.7080827654
A188: 17:0 | B188: 437.3526405 | D188: 5.612104013 | E188: 4.061497373 | F188: 5.685880834 | G188: 6.463699769 | H188: 5.603844201 | I188: 3.828447672 | J188: 7.195062413 | K188: 3.615412045 | L188: 4.701104592 | M188: 5.196339212 | N188: 0.4096619576 | P188: 6.134459802 | Q188: 4.355368119 | R188: 5.474045382 | S188: 4.499607166 | T188: 2.474757541 | U188: 4.3261946 | V188: 4.544072102 | W188: 0.5086355283
A189: 18:3 | B189: 445.3213404 | D189: 35.96191977 | E189: 12.77848434 | F189: 18.40646704 | G189: 24.12043007 | H189: 28.98928036 | I189: 34.88875423 | J189: 86.22804519 | K189: 14.50973638 | L189: 21.08270351 | M189: 30.7739801 | N189: 7.455138061 | P189: 33.93319246 | Q189: 8.337888924 | R189: 14.84483601 | S189: 10.44043957 | T189: 8.781848878 | U189: 29.65019418 | V189: 17.66473334 | W189: 4.5983763
A190: 18:2 | B190: 447.3369904 | D190: 378.4292608 | E190: 198.911919 | F190: 241.4039962 | G190: 295.4755487 | H190: 387.7331112 | I190: 408.8127963 | J190: 825.0587607 | K190: 191.9084712 | L190: 261.4132144 | M190: 354.3496754 | N190: 64.72545338 | P190: 512.9666004 | Q190: 136.8488403 | R190: 245.975051 | S190: 147.3863858 | T190: 115.2110455 | U190: 335.8163163 | V190: 249.0340399 | W190: 62.72354045
A191: 18:1 | B191: 449.3526405 | D191: 545.2189713 | E191: 286.0480267 | F191: 349.5677704 | G191: 463.9691381 | H191: 572.1012389 | I191: 594.1470692 | J191: 1279.068671 | K191: 275.8289828 | L191: 408.2051417 | M191: 530.4616678 | N191: 101.5905628 | P191: 771.6481826 | Q191: 212.3728754 | R191: 366.583421 | S191: 235.5185307 | T191: 179.7740862 | U191: 498.9926763 | V191: 377.4816287 | W191: 92.51192208
A192: 18:0 | B192: 451.3682906 | D192: 65.01179679 | E192: 48.82006814 | F192: 44.24468405 | G192: 55.20360243 | H192: 49.76358821 | I192: 44.48387374 | J192: 79.80603139 | K192: 38.9013717 | L192: 45.91440453 | M192: 52.46104678 | N192: 4.234762469 | P192: 74.59837796 | Q192: 36.67749467 | R192: 41.65768449 | S192: 40.11292421 | T192: 21.97599847 | U192: 49.64442654 | V192: 44.11115106 | W192: 7.135165695
A193: 19:2 | B193: 461.3526405 | D193: 0.8138715993 | E193: 0.9227898566 | F193: 1.388397391 | G193: 1.393104838 | H193: 0.9910433165 | I193: 0.1936581222 | J193: 0.1549012 | K193: 1.151041802 | L193: 1.158418235 | M193: 0.9074695957 | N193: 0.1528116872 | P193: 1.843978958 | Q193: 1.230229583 | R193: 1.393207749 | S193: 1.656990269 | T193: 0.5289601917 | U193: 1.71935828 | V193: 1.395454172 | W193: 0.1960106727
A194: 19:1 | B194: 463.3682906 | D194: 5.774718818 | E194: 6.086303056 | F194: 13.17794686 | G194: 13.8355327 | H194: 8.496984266 | I194: 4.993713102 | J194: 4.448498841 | K194: 4.641778735 | L194: 7.306209003 | M194: 7.640187265 | N194: 1.190065427 | P194: 6.672532626 | Q194: 6.896366396 | R194: 15.1832422 | S194: 4.973450125 | T194: 5.031257267 | U194: 5.268013835 | V194: 7.337477074 | W194: 1.606058441
A195: 19:0 | B195: 465.3839406 | D195: 7.929505779 | E195: 8.368278095 | F195: 16.18499961 | G195: 13.31317957 | H195: 8.281175064 | I195: 5.321782837 | J195: 1.923738188 | K195: 6.130892481 | L195: 6.302668739 | M195: 8.195135596 | N195: 1.421898932 | P195: 5.266369253 | Q195: 10.46158518 | R195: 15.70302802 | S195: 5.768133689 | T195: 4.517800293 | U195: 4.632088381 | V195: 7.724834136 | W195: 1.833614395
A196: 20:5 | B196: 469.3213404 | D196: 2.223938957 | E196: 0.7483168234 | F196: 0.9057257138 | G196: 0.7613110765 | H196: 0.85890385 | I196: 1.466617048 | J196: 4.610890513 | K196: 0.8523379655 | L196: 1.03526146 | M196: 1.495922601 | N196: 0.4202015941 | P196: 0.9754129639 | Q196: 0.1997881464 | R196: 0.0865421 | S196: 0.6644124001 | T196: 0.3342893428 | U196: 0.8644412924 | V196: 0.5208143743 | W196: 0.1496441962
A197: 20:4 | B197: 471.3369904 | D197: 70.91649021 | E197: 56.3093439 | F197: 63.58032929 | G197: 64.70503513 | H197: 59.68960747 | I197: 70.56350878 | J197: 92.39852347 | K197: 37.2625072 | L197: 47.20911478 | M197: 62.51494003 | N197: 5.207861595 | P197: 52.23728526 | Q197: 23.64376324 | R197: 32.82885086 | S197: 19.52933052 | T197: 17.75626783 | U197: 47.23676687 | V197: 32.20537743 | W197: 5.973187005
A198: 20:3 | B198: 473.3526405 | D198: 9.534717901 | E198: 5.363006039 | F198: 5.604957845 | G198: 5.784894869 | H198: 6.723956846 | I198: 7.976915613 | J198: 16.24943319 | K198: 3.836299963 | L198: 5.974026744 | M198: 7.449801002 | N198: 1.226730501 | P198: 9.252121879 | Q198: 2.872496408 | R198: 3.990941295 | S198: 3.47922396 | T198: 2.626871064 | U198: 8.27431195 | V198: 5.082661093 | W198: 1.186727065
A199: 20:2 | B199: 475.3682906 | D199: 9.236371304 | E199: 3.786292169 | F199: 4.206194385 | G199: 5.162148816 | H199: 5.549145597 | I199: 6.733690489 | J199: 15.64481247 | K199: 3.684214354 | L199: 5.152466003 | M199: 6.572815066 | N199: 1.270315124 | P199: 9.109862381 | Q199: 2.414029365 | R199: 3.626284297 | S199: 2.641795941 | T199: 2.734946334 | U199: 6.41208547 | V199: 4.489833965 | W199: 1.104374202
A200: 20:1 | B200: 477.3839406 | D200: 4.311125447 | E200: 2.549107577 | F200: 2.341468451 | G200: 4.292561448 | H200: 3.252237566 | I200: 3.012468172 | J200: 6.392112213 | K200: 1.814491842 | L200: 3.599036235 | M200: 3.507178772 | N200: 0.4571369015 | P200: 5.192295465 | Q200: 2.054821771 | R200: 3.012593312 | S200: 3.148698958 | T200: 1.806712436 | U200: 3.425307528 | V200: 3.106738245 | W200: 0.4918758193
A201: 20:0 | B201: 479.3995907 | D201: 0.1328900324 | E201: 0.639801446 | F201: 0.6828645787 | G201: 0.8273043843 | H201: 0.1523752927 | I201: 0.11205791 | J201: 0.18215026 | K201: 0.6417721494 | L201: 0.4399891643 | M201: 0.4234672464 | N201: 0.09415099631 | P201: 0.5829714252 | Q201: 0.89097916 | R201: 0.8289837377 | S201: 1.125557686 | T201: 0.4091075969 | U201: 0.6152155489 | V201: 0.7421358592 | W201: 0.104731257
A202: 22:6 | B202: 495.3369904 | D202: 16.10112202 | E202: 10.26455443 | F202: 11.07509749 | G202: 12.13105727 | H202: 11.62862852 | I202: 14.39415167 | J202: 20.80045623 | K202: 6.452255244 | L202: 9.739332996 | M202: 12.50962843 | N202: 1.382289263 | P202: 13.078485 | Q202: 4.938807675 | R202: 6.717530011 | S202: 4.304629731 | T202: 4.156183538 | U202: 12.85823481 | V202: 7.675645127 | W202: 1.71472576
A203: 22:5 | B203: 497.3526405 | D203: 5.976564181 | E203: 2.666831563 | F203: 3.265957155 | G203: 2.913878622 | H203: 2.784971299 | I203: 3.83865782 | J203: 6.104788074 | K203: 1.944054359 | L203: 2.89461579 | M203: 3.598924318 | N203: 0.4906927201 | P203: 4.276874757 | Q203: 1.372992872 | R203: 1.405975092 | S203: 1.11679979 | T203: 1.289437612 | U203: 2.609965297 | V203: 2.01200757 | W203: 0.5028683154
A204: 22:4 | B204: 499.3682906 | D204: 3.147320316 | E204: 1.358990159 | F204: 1.180289573 | G204: 1.861207992 | H204: 0.9313619153 | I204: 1.090360199 | J204: 2.907572167 | K204: 0.8813814053 | L204: 1.474292205 | M204: 1.648086215 | N204: 0.2794993423 | P204: 2.01191806 | Q204: 0.6025667426 | R204: 0.5880119692 | S204: 0.8581304829 | T204: 0.8948103625 | U204: 1.319559058 | V204: 1.045832779 | W204: 0.2215379155
B205: Sum | D205: =SUM(D180:D204) -> 1625.874363 | E205: 864.3228995 | F205: 1069.78533 | G205: 1341.146782 | H205: 1530.532575 | I205: 1575.235357 | J205: 3440.18028 | K205: 805.8759956 | L205: 1140.953783 | M205: 1488.21193 | N205: 263.8026553 | P205: =SUM(P180:P204) -> 1952.637353 | Q205: 625.2928772 | R205: 1035.523492 | S205: 727.0281795 | T205: 506.3313999 | U205: 1348.524679 | V205: 1032.55633 | W205: 222.2999129
M207: ACSL4floxed HFD | V207: Ad-KO HFD
A208: HNE (nmol/mg protein) | B208: MASS:HNE | D208: 1 | E208: 2 | F208: 3 | G208: 4 | H208: 5 | I208: 6 | J208: 7 | K208: 8 | L208: 9 | M208: Average | N208: SE | P208: 10 | Q208: 11 | R208: 12 | S208: 13 | T208: 14 | U208: 15 | V208: Average | W208: SE
A209: 4-hydroxy Nonenal - Carnosine (HNE) | B209: 383.2294451 | D209: 1.11250644 | E209: 0.7461449505 | F209: 0.7280808109 | G209: 1.071788916 | H209: 0.7758163169 | I209: 0.5659393414 | J209: 0.5430775022 | K209: 0.602884518 | L209: 0.6979876425 | M209: 0.7604696043 | N209: 0.06833107753 | P209: 0.7039102801 | Q209: 0.4230367882 | R209: 0.5935336712 | S209: 0.3432455341 | T209: 0.3132805017 | U209: 0.7392997792 | V209: =AVERAGE(P209:U209) -> 0.5193844258 | W209: =STDEV(P209:U209)/SQRT(6) -> 0.07543148506
M211: ACSL4floxed HFD | V211: Ad-KO HFD
... 255 more rows
